{"text_format":"1","workbook":"xlsx","n_sheets":7,"sheets":["Täyttöohjeita","GC7","Ympäristötuotot","Ympäristökulut","Ympäristöinvestoinnit","Henkilöstökustannukset","Tiedot toimintakertomukseen"],"not_rendered":{"charts":0,"images":1,"macros":1,"external_links":0,"defined_names":6,"comments":1,"pivot_tables":0},"unopened":[],"bounds":{"document_bytes":16777216,"sheet_cells":100000,"rows_first":2000,"rows_last":500,"rows_between":2000,"halvings":0,"cell_chars":16384,"cell_head_chars":4096},"cells_cut":0,"cells_raw":0,"read":"whole","date_system":"1900"}

{"sheet":"Täyttöohjeita","index":0,"n_rows":17,"n_cols":1,"rows_kept":17,"cut":false,"hidden":false,"merged":[]}
["Lomakkeen täyttöohjeet"]
[]
["1) Lomakkeen tarkoitus ja ilmoitettavat erät"]
["Tällä lomakkeella ilmoitetaan ympäristön- ja ilmastonsuojelutuotot, -kulut ja -investoinnit sekä kuvaus kaupungin talouden kannalta olennaisimmista ympäristö- ja ilmastotoimenpiteistä. Tiedot esitetään ilmasto- ja ympäristöpolitiikan yksikön tuottamassa ympäristötilinpäätöksessä ja soveltuvin osin kaupungin toimintakertomuksessa. Ympäristövastuut ilmoitetaan tilinpäätösohjeen liitteellä 3 Liitetietojen tiedonkeruulomake."]
[]
["2) Tietojen raportoiminen ja kokoaminen SAP-järjestelmästä"]
["Ympäristötilinpäätöksen tiedot kootaan SAP-järjestelmään syötettyjen kirjaustunnisteiden (toimintoalue) avulla. Tuloslaskelman tulot ja menot voidaan raportoida mm. SAP BW:n raportilla: Talouden raportit liikelaitokset -> Tuloslaskelma ja investoinnit monivalinta. Investointimenot raportoidaan projektiraporttien avulla esimerkiksi: CJI3 ja poistot KOM-kaavio raportilla: S_ALR_8701190. Poistot välillisistä ympäristöinvestoinneista ilmoitetaan välillisinä ympäristökuluina. Tarkemmat ohjeet yllä mainittujen raporttien käyttöön löytyvät koulutusmateriaalista Taskusta: Työn tueksi/Talous/Kirjanpito ja kirjausohjeet/Ympäristöasioiden kirjaaminen. Mikäli raportoidut tiedot ovat ajettavissa suoraan SAP-järjestelmästä, lomakkeen täyttämisen lisäksi välilehdelle on suositeltavaa liittää kuvakaappaus järjestelmästä ajetusta raportista. Huom! Mikäli toimintoalueille ei ole tehty kirjauksia, mutta yksikössä on kuitenkin tieto siitä, että ympäristönsuojeluun liittyviä menoja, tuloja tai investointeja on ollut, tulee yksikön raportoida tiedot muuta kautta ja ilmoittaa ne tällä lomakkeella."]
[]
["3) Lomakkeen täyttäminen"]
["Ympäristö- ja ilmastoerien kirjaaminen"]
["Ympäristön- ja ilmastonsuojeluun liittyvät tuotot, kulut ja investoinnit kirjataan niitä vastaaville välilehdille. Välilehdelle \"Henkilöstökustannukset\" kirjataan niiden työntekijöiden työpanos, joka kokonaan tai osittain kohdistuu pysyvästi ympäristönsuojeluun. Välilehdellä \"Tiedot toimintakertomukseen\" kuvataan tarkemmin merkittävimpiä ympäristötoimenpiteitä, jotka esitetään soveltuvin osin kaupungin toimintakertomuksessa. Jokaisen raportoidun summan kohdalle tulee kirjoittaa lyhyesti mistä eristä kyseinen summa pääosin koostuu. "]
[]
["Kirjaukset konsernin tytäryhteisöiltä ja ulkopuolisilta tahoilta"]
["Ympäristötilinpäätöksen 2021 kokoamiseksi ympäristön- ja ilmastonsuojelutulojen, -menojen ja -investointien tiedot kerätään koko kaupunkikonsernista. Lomakkeella ilmoitetaan erikseen kaupungin ulkoiset ja kaupunkikonsernin ulkoiset erät. Kaupungin ulkoisilla erillä tarkoitetaan kirjauksia konsernin tytäryhteisöiltä (kumppanikoodit 2010–2980) ja kaupunkikonsernin ulkoisillä erillä tarkoitetaan kirjauksia, jotka ovat syntyneet liiketapahtumista Tampereen kaupunkikonsernin ulkoisten tahojen kanssa. Kaupungin sisäisiä (kumppanikoodit 1110–1850) eriä ei ilmoiteta lomakkeella. Esimerkiksi ostot Tampereen Sähkölaitokselta (kumppanikoodi 2210) ilmoitetaan lomakkeella kohdassa \"kirjaukset konsernin tytäryhteisöiltä\". Ohjeen mukaisesti ostoja Tampereen Vedeltä (kumppanikoodi 1830) ei ilmoiteta lomakkeella. Luettelo konserniyhteisöistä on tilinpäätösohjeen liitteellä 7 ja listaus kaupungin ja kaupunkikonsernin kumppanikoodeista löytyy Taskusta: Työn tueksi/Talous/Kirjanpito ja kirjausohjeet/Kumppanikoodit SAP:ssa."]
[]
["Ympäristöerien tunnistaminen"]
["Ympäristöerien tunnistamisessa ja kirjaamisessa apuna voi käyttää Kirjausohjeen 2020 liitteen 3 ohjeistusta (Ympäristö- ja ilmastoasioiden kirjaaminen) sekä Kirjausohjeen 2015 liitteen 1 ohjeistusta (Ympäristönsuojelun kulujen ja investointien kirjausohjeet). Ohjeissa on lueteltu ympäristönsuojelutoiminnan toimintoalueet ja niiden sisällöt. "]

{"sheet":"GC7","index":1,"n_rows":874,"n_cols":4,"rows_kept":874,"cut":false,"hidden":true,"merged":[]}
[]
[null,"Tietojen vienti GC7-järjestelmään, sisäiset erät syötettävä käsin"]
[null,"Tarkista edellisten tilikausien ylijäämän erittely"]
[]
[null,"Tase-ero:",{"$f":"C874","v":{"$error":"#REF!"}}]
[]
[null,null,"8/2014",{"$f":"#REF!","v":{"$error":"#REF!"}}]
[]
[]
[]
[null,"TULOSLASKELMA"]
[null,"TOIMINTATUOTOT"]
[null,"Myyntituotot"]
[null,"Liiketoiminnan myyntituotot"]
["300000","Liiketoiminnan myyntituotot",{"$f":"#REF!","v":{"$error":"#REF!"}}]
["300008","Myyntituotot, sisäiset",{"$f":"#REF!","v":{"$error":"#REF!"}}]
["300010","Kiinteistöyhtiön vuokratuotot",{"$f":"#REF!","v":{"$error":"#REF!"}}]
["300018","Kiinteistöyhtiön vuokratuotot, sisäiset",{"$f":"#REF!","v":{"$error":"#REF!"}}]
["307989","Liiketoiminnan myyntituotot",{"$f":"SUM(C15:C18)","v":{"$error":"#REF!"}},{"$f":"SUM(D15:D18)","v":0}]
[]
[null,"Täyden korvauksen perusteella saadut korvaukset valtiolta"]
["308000","Täyden korvauksen perusteella saadut korvaukset valtiolta",{"$f":"#REF!","v":{"$error":"#REF!"}}]
["309989","Täyden korvauksen perusteella saadut korvaukset valtiolta",{"$f":"SUM(C22:C22)","v":{"$error":"#REF!"}},{"$f":"SUM(D22:D22)","v":0}]
[]
[null,"Korvaukset kunnilta ja kuntayhtymiltä "]
["310000","Korvaukset kunnilta ja kuntayhtymiltä",{"$f":"#REF!","v":{"$error":"#REF!"}}]
["310008","Korvaukset kunnilta ja kuntayhtymiltä, sisäiset",{"$f":"#REF!","v":{"$error":"#REF!"}}]
["312989","Korvaukset kunnilta ja kuntayhtymiltä",{"$f":"SUM(C26:C27)","v":{"$error":"#REF!"}},{"$f":"SUM(D26:D27)","v":0}]
[]
[null,"Muut suoritteiden myyntituotot "]
["313000","Muut suoritteiden myyntituotot",{"$f":"#REF!","v":{"$error":"#REF!"}}]
["313008","Muut suoritteiden myyntituotot, sisäiset",{"$f":"#REF!","v":{"$error":"#REF!"}}]
["318999","Muut suoritteiden myyntituotot",{"$f":"SUM(C31:C32)","v":{"$error":"#REF!"}},{"$f":"SUM(D31:D32)","v":0}]
[]
["319989","Myyntituotot",{"$f":"C19+C23+C28+C33","v":{"$error":"#REF!"}},{"$f":"D19+D23+D28+D33","v":0}]
[]
[null,"Maksutuotot"]
["329000","Maksutuotot",{"$f":"#REF!","v":{"$error":"#REF!"}}]
["329008","Maksutuotot, sisaiset",{"$f":"#REF!","v":{"$error":"#REF!"}}]
["329989","Maksutuotot",{"$f":"SUM(C38:C39)","v":{"$error":"#REF!"}},{"$f":"SUM(D38:D39)","v":0}]
[]
["329999","Maksutuotot",{"$f":"C40","v":{"$error":"#REF!"}},{"$f":"#REF!+#REF!+#REF!+#REF!+#REF!+D40+#REF!","v":{"$error":"#REF!"}}]
[]
[null,"Tuet ja avustukset "]
["330000","Tuet ja avustukset",{"$f":"#REF!","v":{"$error":"#REF!"}}]
["330008","Tuet ja avustukset, sisäiset",{"$f":"#REF!","v":{"$error":"#REF!"}}]
["339989","Tuet ja avustukset",{"$f":"SUM(C45:C46)","v":{"$error":"#REF!"}},{"$f":"SUM(D45:D46)","v":0}]
[]
["340189","Tuet ja avustukset",{"$f":"C47","v":{"$error":"#REF!"}},{"$f":"D47+#REF!","v":{"$error":"#REF!"}}]
[]
[null,"Muut toimintatuotot "]
[null,"Vuokratuotot "]
["341000","Vuokratuotot",{"$f":"#REF!","v":{"$error":"#REF!"}}]
["341008","Vuokratuotot, sisäiset",{"$f":"#REF!","v":{"$error":"#REF!"}}]
["349989","Vuokratuotot",{"$f":"SUM(C53:C54)","v":{"$error":"#REF!"}},{"$f":"SUM(D53:D54)","v":0}]
[]
[null,"Muut toimintatuotot "]
["350100","Muut toimintatuotot",{"$f":"#REF!","v":{"$error":"#REF!"}}]
["350108","Muut toimintatuotot, sisäiset",{"$f":"#REF!","v":{"$error":"#REF!"}}]
["351000","Käyttöomaisuuden myyntivoitot",{"$f":"#REF!","v":{"$error":"#REF!"}}]
["351008","Käyttöomaisuuden myyntivoitot, sisäiset",{"$f":"#REF!","v":{"$error":"#REF!"}}]
["359979","Muut toimintatuotot",{"$f":"SUM(C58:C61)","v":{"$error":"#REF!"}},{"$f":"SUM(D58:D61)","v":0}]
[]
["359989","Muut toimintatuotot",{"$f":"C55+C62","v":{"$error":"#REF!"}},{"$f":"D55+D62","v":0}]
[]
[]
["359999","Toimintatuotot",{"$f":"C35+C42+C49+C64","v":{"$error":"#REF!"}},{"$f":"D35+D42+D49+D64","v":{"$error":"#REF!"}}]
[]
[null,"Valmistevarastojen muutos"]
["360000","Valmiiden ja keskeneräisten tuotteiden varastojen lisäys (+) tai vähennys (-)",{"$f":"#REF!","v":{"$error":"#REF!"}}]
["369989","Valmiiden ja keskeneräisten tuotteiden varastojen lisäys (+) tai vähennys (-)",{"$f":"SUM(C70:C70)","v":{"$error":"#REF!"}},{"$f":"SUM(D70:D70)","v":0}]
[]
[null,"Valmistus omaan käyttöön"]
["370000","Valmistus omaan käyttöön",{"$f":"#REF!","v":{"$error":"#REF!"}}]
["379989","Valmistus omaan käyttöön",{"$f":"SUM(C74:C74)","v":{"$error":"#REF!"}},{"$f":"SUM(D74:D74)","v":0}]
[]
[null,"TOIMINTAKULUT"]
[]
[null,"HENKILÖSTÖKULUT"]
[]
[null,"Palkat ja palkkiot  "]
["400000","Palkat ja palkkiot",{"$f":"#REF!","v":{"$error":"#REF!"}}]
["406500","Aktivoidut palkat ja palkkiot",{"$f":"#REF!","v":{"$error":"#REF!"}}]
["407000","Henkilöstökorvaukset ja muut henkilöstömenojen korjauserät",{"$f":"#REF!","v":{"$error":"#REF!"}}]
["409989","Palkat ja palkkiot",{"$f":"SUM(C82:C84)","v":{"$error":"#REF!"}},{"$f":"SUM(D82:D84)","v":0}]
[]
[null,"Henkilösivukulut "]
[null,"Eläkekulut "]
["410000","Eläkekulut",{"$f":"#REF!","v":{"$error":"#REF!"}}]
["413500","Aktivoidut eläkekulut",{"$f":"#REF!","v":{"$error":"#REF!"}}]
["414989","Eläkekulut",{"$f":"SUM(C89:C90)","v":{"$error":"#REF!"}},{"$f":"SUM(D89:D90)","v":0}]
[]
[null,"Muut henkilösivukulut "]
["415000","Muut henkilösivukulut",{"$f":"#REF!","v":{"$error":"#REF!"}}]
["420000","Aktivoidut sosiaalivakuutusmaksut",{"$f":"#REF!","v":{"$error":"#REF!"}}]
["429979","Muut henkilösivukulut",{"$f":"SUM(C94:C95)","v":{"$error":"#REF!"}},{"$f":"SUM(D94:D95)","v":0}]
[]
["429989","Henkilösivukulut",{"$f":"C91+C96","v":{"$error":"#REF!"}},{"$f":"D91+D96","v":0}]
[]
[]
["429999","Henkilöstökulut",{"$f":"C85+C98","v":{"$error":"#REF!"}},{"$f":"D85+D98","v":0}]
[]
[]
[null,"PALVELUJEN OSTOT"]
[]
[null,"Asiakaspalvelujen ostot "]
["430000","Asiakaspalvelujen ostot",{"$f":"#REF!","v":{"$error":"#REF!"}}]
["430008","Asiakaspalvelujen ostot, sisäiset",{"$f":"#REF!","v":{"$error":"#REF!"}}]
["433989","Asiakaspalvelujen ostot",{"$f":"SUM(C107:C108)","v":{"$error":"#REF!"}},{"$f":"SUM(D107:D108)","v":0}]
[]
[null,"Muiden palvelujen ostot "]
["434000","Muiden palvelujen ostot",{"$f":"#REF!","v":{"$error":"#REF!"}}]
["434008","Muiden palvelujen ostot, sisäiset",{"$f":"#REF!","v":{"$error":"#REF!"}}]
["448089","Muiden palvelujen ostot",{"$f":"SUM(C112:C113)","v":{"$error":"#REF!"}},{"$f":"SUM(D112:D113)","v":0}]
[]
[]
["449999","Palvelujen ostot",{"$f":"C109+C114","v":{"$error":"#REF!"}},{"$f":"D109+D114","v":0}]
[]
[null,"AINEET, TARVIKKEET, TAVARAT"]
[]
[null,"Ostot tilikauden aikana"]
["450000","Ostot tilikauden aikana",{"$f":"#REF!","v":{"$error":"#REF!"}}]
["450008","Ostot tilikauden aikana, sisäiset",{"$f":"#REF!","v":{"$error":"#REF!"}}]
["464089","Ostot tilikauden aikana",{"$f":"SUM(C122:C123)","v":{"$error":"#REF!"}},{"$f":"SUM(D122:D123)","v":0}]
[]
[null,"Varastojen lisäys tai vähennys "]
["467000","Varastojen lisäys (+) tai vähennys (-)",{"$f":"#REF!","v":{"$error":"#REF!"}}]
["469989","Varastojen lisäys (+) tai vähennys (-)",{"$f":"C127","v":{"$error":"#REF!"}},{"$f":"D127","v":0}]
[]
["469999","Aineet tarvikkeet ja tavarat",{"$f":"C124+C128","v":{"$error":"#REF!"}},{"$f":"D124+D128","v":0}]
[]
[null,"AVUSTUKSET"]
["470000","Avustukset",{"$f":"#REF!","v":{"$error":"#REF!"}}]
["474008","Avustukset yhteisöille, sisäiset",{"$f":"#REF!","v":{"$error":"#REF!"}}]
["479999","Avustukset",{"$f":"SUM(C133:C134)","v":{"$error":"#REF!"}},{"$f":"SUM(D133:D134)","v":0}]
[]
[null,"MUUT TOIMINTAKULUT"]
[]
[null,"Vuokrat  "]
["480000","Vuokrat",{"$f":"#REF!","v":{"$error":"#REF!"}}]
["480008","Vuokrat, sisäiset",{"$f":"#REF!","v":{"$error":"#REF!"}}]
["489989","Vuokrat",{"$f":"SUM(C140:C141)","v":{"$error":"#REF!"}},{"$f":"SUM(D140:D141)","v":0}]
[]
[null,"Muut toimintakulut"]
["490000","Muut toimintakulut",{"$f":"#REF!","v":{"$error":"#REF!"}}]
["490008","Muut toimintakulut, sisäiset",{"$f":"#REF!","v":{"$error":"#REF!"}}]
["491000","Välittömät verot",{"$f":"#REF!","v":{"$error":"#REF!"}}]
["491011","Laskennallisten verosaamisten muutos",{"$f":"#REF!","v":{"$error":"#REF!"}}]
["491012","Laskennallisten verovelkojen muutos",{"$f":"#REF!","v":{"$error":"#REF!"}}]
["492000","Käyttöomaisuuden myyntitappiot",{"$f":"#REF!","v":{"$error":"#REF!"}}]
["492008","Käyttöomaisuuden myyntitappiot, sisäiset",{"$f":"#REF!","v":{"$error":"#REF!"}}]
["499009","Muut toimintakulut",{"$f":"SUM(C145:C151)","v":{"$error":"#REF!"}},{"$f":"SUM(D145:D151)","v":0}]
["499979","Muut toimintakulut",{"$f":"C142+C152","v":{"$error":"#REF!"}},{"$f":"D142+D152","v":0}]
[]
["499989","Toimintakulut",{"$f":"C153+C135+C130+C117+C101","v":{"$error":"#REF!"}},{"$f":"D153+D135+D130+D117+D101","v":0}]
[]
[null,"Osuus osakkuusyhtiöiden voitosta (tappiosta)"]
["499994","Osuus osakkuusyhteisöjen voitosta (tappiosta)",{"$f":"#REF!","v":{"$error":"#REF!"}}]
["499998","Osuus osakkuusyhteisöjen voitosta (tappiosta)",{"$f":"SUM(C158)","v":{"$error":"#REF!"}},{"$f":"SUM(D158)","v":0}]
[]
["499999","TOIMINTAKATE",{"$f":"C67+C71+C75+C155+C159","v":{"$error":"#REF!"}},{"$f":"D67+D71+D75+D155+D159","v":{"$error":"#REF!"}}]
[]
[null,"VALTIONOSUUDET"]
[550000,"Valtionosuudet",{"$f":"#REF!","v":{"$error":"#REF!"}}]
[]
[]
[null,"RAHOITUSTUOTOT JA -KULUT"]
[]
[null,"Korkotuotot "]
["600008","Korkotuotot konserniyhteisöiltä",{"$f":"#REF!","v":{"$error":"#REF!"}}]
["601010","Korkotuotot muilta",{"$f":"#REF!","v":{"$error":"#REF!"}}]
["609989","Korkotuotot",{"$f":"SUM(C170:C171)","v":{"$error":"#REF!"}},{"$f":"SUM(D170:D171)","v":0}]
[]
[null,"Muut rahoitustuotot "]
["610008","Osinkotuotot konserniyhteisöiltä",{"$f":"#REF!","v":{"$error":"#REF!"}}]
["610040","Osinkotuotot muilta",{"$f":"#REF!","v":{"$error":"#REF!"}}]
["617010","Muut rahoitustuotot",{"$f":"#REF!","v":{"$error":"#REF!"}}]
["617018","Muut rahoitustuotot, sisäiset",{"$f":"#REF!","v":{"$error":"#REF!"}}]
["617089","Muut rahoitustuotot",{"$f":"SUM(C175:C178)","v":{"$error":"#REF!"}},{"$f":"SUM(D175:D178)","v":0}]
[]
["619989","Muut rahoitustuotot",{"$f":"C179","v":{"$error":"#REF!"}},{"$f":"#REF!+D179","v":{"$error":"#REF!"}}]
[]
[null,"Korkokulut "]
["620008","Korkokulut konserniyhteisöiltä",{"$f":"#REF!","v":{"$error":"#REF!"}}]
["623010","Korkokulut muilta",{"$f":"#REF!","v":{"$error":"#REF!"}}]
["629989","Muille maksetut korkokulut",{"$f":"SUM(C184:C185)","v":{"$error":"#REF!"}},{"$f":"SUM(D184:D185)","v":0}]
[]
[null,"Muut rahoituskulut "]
["630008","Muut rahoituskulut konserniyhteisöiltä",{"$f":"#REF!","v":{"$error":"#REF!"}}]
["630210","Muut rahoituskulut muilta",{"$f":"#REF!","v":{"$error":"#REF!"}}]
["636000","Arvonalentumiset vaihtuvien vastaavien rahoitusvaroista",{"$f":"#REF!","v":{"$error":"#REF!"}}]
["637000","Arvonalentumiset pysyvien vastaavien sijoituksista",{"$f":"#REF!","v":{"$error":"#REF!"}}]
["637989","Muut rahoituskulut",{"$f":"SUM(C189:C192)","v":{"$error":"#REF!"}},{"$f":"SUM(D189:D192)","v":0}]
[]
["659989","Muut rahoituskulut",{"$f":"C193","v":{"$error":"#REF!"}},{"$f":"D193+#REF!","v":{"$error":"#REF!"}}]
[]
["699979","Rahoitustuotot ja -kulut",{"$f":"C172+C181+C186+C195","v":{"$error":"#REF!"}},{"$f":"D172+D181+D186+D195+#REF!","v":{"$error":"#REF!"}}]
[]
[]
["699999","VUOSIKATE",{"$f":"C161+C164+C197","v":{"$error":"#REF!"}},{"$f":"#REF!+D197+#REF!+#REF!+D161","v":{"$error":"#REF!"}}]
[]
[null,"POISTOT JA ARVONALENTUMISET"]
[]
[null,"Suunnitelman mukaiset poistot"]
["710000","Poisto aineettomista oikeuksista",{"$f":"#REF!","v":{"$error":"#REF!"}}]
["712000","Poisto muista pitkävaikutteisista menoista",{"$f":"#REF!","v":{"$error":"#REF!"}}]
["713000","Poisto rakennuksista ja rakennelmista",{"$f":"#REF!","v":{"$error":"#REF!"}}]
["714000","Poisto kiinteistä rakenteista ja laitteista",{"$f":"#REF!","v":{"$error":"#REF!"}}]
["715000","Poisto koneista ja kalusteista",{"$f":"#REF!","v":{"$error":"#REF!"}}]
["716000","Poisto muista aineellisista hyödykkeistä",{"$f":"#REF!","v":{"$error":"#REF!"}}]
["717000","Konserniliikearvon poistot",{"$f":"#REF!","v":{"$error":"#REF!"}}]
["720000","Käyttöomaisuuden myyntivoitot ja -tappiot",{"$f":"#REF!","v":{"$error":"#REF!"}}]
["721000","Arvonalentuminen aineettomista oikeuksista",{"$f":"#REF!","v":{"$error":"#REF!"}}]
["721020","Arvonalentuminen muista pitkävaikutteisista menoista",{"$f":"#REF!","v":{"$error":"#REF!"}}]
["721030","Arvonalentuminen rakennuksista ja rakennelmista",{"$f":"#REF!","v":{"$error":"#REF!"}}]
["721040","Arvonalentuminen kiinteistä rakenteista ja laitteista",{"$f":"#REF!","v":{"$error":"#REF!"}}]
["721050","Arvonalentuminen koneista ja kalustosta",{"$f":"#REF!","v":{"$error":"#REF!"}}]
["721060","Arvonalentuminen muista aineellisista hyödykkeistä",{"$f":"#REF!","v":{"$error":"#REF!"}}]
["722000","Konserniliikearvon arvonalentumiset",{"$f":"#REF!","v":{"$error":"#REF!"}}]
["722999","Suunnitelman mukaiset poistot",{"$f":"SUM(C205:C219)","v":{"$error":"#REF!"}},{"$f":"SUM(D205:D219)","v":0}]
[]
[null,"Tilikauden yli- ja alipariarvot"]
["724000","Tilikauden kuluksi kirjattu ylipariarvo",{"$f":"#REF!","v":{"$error":"#REF!"}}]
["724100","Tilikaudella tuloutettu alipariarvo",{"$f":"#REF!","v":{"$error":"#REF!"}}]
["724989","Tilikauden yli- ja alipariarvot",{"$f":"SUM(C223+C224)","v":{"$error":"#REF!"}},{"$f":"SUM(D223+D224)","v":0}]
[]
[null,"Arvonalentumiset  "]
["723000","Arvonalentumiset, maa- ja vesialueet",{"$f":"#REF!","v":{"$error":"#REF!"}}]
["723010","Arvonalentumiset, muut",{"$f":"#REF!","v":{"$error":"#REF!"}}]
["729989","Arvonalentumiset",{"$f":"SUM(C228:C229)","v":{"$error":"#REF!"}},{"$f":"SUM(D228:D229)","v":0}]
[]
["729999","Poistot ja arvonalentumiset",{"$f":"C220+C230+C225","v":{"$error":"#REF!"}},{"$f":"D220+D230+D225","v":0}]
[]
[]
[null,"SATUNNAISET TUOTOT JA KULUT"]
[null,"Satunnaiset tuotot"]
["800000","Käyttöomaisuuden myyntivoitot",{"$f":"#REF!","v":{"$error":"#REF!"}}]
["800048","Käyttöomaisuuden myyntivoitot, sisäiset",{"$f":"#REF!","v":{"$error":"#REF!"}}]
["801000","Muut satunnaiset tuotot",{"$f":"#REF!","v":{"$error":"#REF!"}}]
["801008","Muut satunnaiset tuotot, sisäiset",{"$f":"#REF!","v":{"$error":"#REF!"}}]
["809999","Satunnaiset tuotot",{"$f":"SUM(C237:C240)","v":{"$error":"#REF!"}},{"$f":"SUM(D237:D240)","v":0}]
[]
[null,"Satunnaiset kulut"]
["810000","Käyttöomaisuuden myyntitappiot",{"$f":"#REF!","v":{"$error":"#REF!"}}]
["810008","Käyttöomaisuuden myyntitappiot, sisäiset",{"$f":"#REF!","v":{"$error":"#REF!"}}]
["811000","Muut satunnaiset kulut",{"$f":"#REF!","v":{"$error":"#REF!"}}]
["811008","Muut satunnaiset kulut, sisäiset",{"$f":"#REF!","v":{"$error":"#REF!"}}]
["819979","Satunnaiset kulut",{"$f":"SUM(C244:C247)","v":{"$error":"#REF!"}},{"$f":"SUM(D244:D247)","v":0}]
["819989","Satunnaiset erät",{"$f":"C241+C248","v":{"$error":"#REF!"}},{"$f":"D241+D248","v":0}]
[]
["819999","TILIKAUDEN TULOS",{"$f":"C249+C232+C200","v":{"$error":"#REF!"}},{"$f":"D249+D232+D200","v":{"$error":"#REF!"}}]
[]
[null,"VARAUSTEN JA RAHASTOJEN MUUTOKSET"]
[null,"Poistoeron muutos"]
["855000","Poistoeron lisäys (-) / vähennys (+)",{"$f":"#REF!","v":{"$error":"#REF!"}}]
["859989","Poistoeron lisays (-) / vahennys (+)",{"$f":"SUM(C255:C255)","v":{"$error":"#REF!"}},{"$f":"SUM(D255:D255)","v":0}]
[]
[null,"Varausten muutos"]
["860000","Varausten lisäys (-)",{"$f":"#REF!","v":{"$error":"#REF!"}}]
["865000","Varausten vähennys (+)",{"$f":"#REF!","v":{"$error":"#REF!"}}]
["869989","Vapaaehtoisten varausten lisays (-) / vahennys (+)",{"$f":"SUM(C259:C260)","v":{"$error":"#REF!"}},{"$f":"SUM(D259:D260)","v":0}]
[]
[null,"Rahastojen muutos"]
["870000","Rahastojen lisäys (-)",{"$f":"#REF!","v":{"$error":"#REF!"}}]
["875000","Rahastojen vähennys (+)",{"$f":"#REF!","v":{"$error":"#REF!"}}]
["879989","Rahastojen lisays (-) / vahennys (+)",{"$f":"SUM(C264:C265)","v":{"$error":"#REF!"}},{"$f":"SUM(D264:D265)","v":0}]
[]
["879999","Tilinpäätössiirrot",{"$f":"C256+C261+C266","v":{"$error":"#REF!"}},{"$f":"D256+D261+D266","v":0}]
[]
[null,"Vähemmistöosuus"]
["880000","Vähemmistöosuus tilikauden tuloksesta",{"$f":"#REF!","v":{"$error":"#REF!"}}]
["880089","Vähemmistöosuus",{"$f":"SUM(C271)","v":{"$error":"#REF!"}},{"$f":"SUM(D271)","v":0}]
[]
["880099","TILIKAUDEN YLIJÄÄMÄ/ALIJÄÄMÄ",{"$f":"C251+C256+C261+C266+C272","v":{"$error":"#REF!"}},{"$f":"#REF!+D272+D268+D251","v":{"$error":"#REF!"}}]
[]
[]
[null,"TASE"]
[]
[null,"VASTAAVAA "]
[]
[null,"PYSYVÄT VASTAAVAT"]
[]
[null,"AINEETTOMAT HYÖDYKKEET"]
[]
[null,"AINEETTOMAT OIKEUDET"]
[]
[null,"Aineettomat oikeudet"]
[null,"Hankintameno 1.1. (+)",{"$f":"#REF!","v":{"$error":"#REF!"}}]
["100020","Lisäykset (investoinnit) (+)",{"$f":"#REF!","v":{"$error":"#REF!"}}]
["100021","Rahoitusosuudet tilikaudella",{"$f":"#REF!","v":{"$error":"#REF!"}}]
["100040","Vähennykset (-)",{"$f":"#REF!","v":{"$error":"#REF!"}}]
["100050","Siirrot erien välillä (+/-)",{"$f":"#REF!","v":{"$error":"#REF!"}}]
["100059","Hankintameno tilikauden lopussa",{"$f":"SUM(C288:C292)","v":{"$error":"#REF!"}},{"$f":"SUM(D288:D292)","v":0}]
["100080","Kauden poistot (-)",{"$f":"C205","v":{"$error":"#REF!"}},{"$f":"D205","v":0}]
["100085","Arvonalennukset (-) ja arvonalennusten palautus (+)",{"$f":"C213","v":{"$error":"#REF!"}},{"$f":"D213","v":0}]
["100089","Kertyneet sumupoistot ja arvonal. kauden lopussa",{"$f":"SUM(C294:C295)","v":{"$error":"#REF!"}},{"$f":"SUM(D294:D295)","v":0}]
["100099","Aineettomat oikeudet",{"$f":"C293+C296","v":{"$error":"#REF!"}},{"$f":"D293+D296","v":0}]
["100699","Aineettomat oikeudet",{"$f":"C297","v":{"$error":"#REF!"}},{"$f":"D297+#REF!+#REF!","v":{"$error":"#REF!"}}]
[]
[]
[null,"KONSERNILIIKEARVO"]
[]
[null,"Konserniliikearvo"]
[null,"Hankintameno 1.1. (+)",{"$f":"#REF!","v":{"$error":"#REF!"}}]
["109040","Lisäykset (investoinnit) (+)",{"$f":"#REF!","v":{"$error":"#REF!"}}]
["109060","Vähennykset (-)",{"$f":"#REF!","v":{"$error":"#REF!"}}]
["109080","Siirrot erien välillä (+/-)",{"$f":"#REF!","v":{"$error":"#REF!"}}]
["109089","Hankintameno kauden lopussa",{"$f":"SUM(C304:C307)","v":{"$error":"#REF!"}},{"$f":"SUM(D304:D307)","v":0}]
["109150","Kauden poistot (-)",{"$f":"C211","v":{"$error":"#REF!"}},{"$f":"D211","v":0}]
["109160","Arvonalennukset (-)",{"$f":"C219","v":{"$error":"#REF!"}},{"$f":"D219","v":0}]
["109179","Kertyneet sumu-poistot kauden lopussa",{"$f":"SUM(C309:C310)","v":{"$error":"#REF!"}},{"$f":"SUM(D309:D310)","v":0}]
["109189","Konserniliikearvo",{"$f":"C308+C311","v":{"$error":"#REF!"}},{"$f":"D308+D311+#REF!","v":{"$error":"#REF!"}}]
["109599","Konserniliikearvo",{"$f":"C312","v":{"$error":"#REF!"}},{"$f":"D312+#REF!","v":{"$error":"#REF!"}}]
[]
[]
[null,"MUUT PITKÄVAIKUTTEISET MENOT"]
[]
[null,"Muut pitkävaikutteiset menot"]
[null,"Hankintameno 1.1. (+)",{"$f":"#REF!","v":{"$error":"#REF!"}}]
["101020","Lisäykset (investoinnit) (+)",{"$f":"#REF!","v":{"$error":"#REF!"}}]
["101021","Rahoitusosuudet tilikaudella",{"$f":"#REF!","v":{"$error":"#REF!"}}]
["101040","Vähennykset (-)",{"$f":"#REF!","v":{"$error":"#REF!"}}]
["101050","Siirrot erien välillä (+/-)",{"$f":"#REF!","v":{"$error":"#REF!"}}]
["101059","Hankintameno kauden lopussa",{"$f":"SUM(C319:C323)","v":{"$error":"#REF!"}},{"$f":"SUM(D319:D323)","v":0}]
["101080","Kauden poistot (-)",{"$f":"C206","v":{"$error":"#REF!"}},{"$f":"D206","v":0}]
["101085","Arvonalennukset (-) ja arvonalennusten palautus (+)",{"$f":"C214","v":{"$error":"#REF!"}},{"$f":"D214","v":0}]
["101089","Kertyneet sumu-poistot ja arvonal. kauden lopussa (-)",{"$f":"SUM(C325:C326)","v":{"$error":"#REF!"}},{"$f":"SUM(D325:D326)","v":0}]
["101099","Muut pitkävaikutteiset menot",{"$f":"C324+C327","v":{"$error":"#REF!"}},{"$f":"D324+D327","v":0}]
["101199","Muut pitkävaikutteiset menot",{"$f":"C328","v":{"$error":"#REF!"}}]
[]
[null,"ENNAKKOMAKSUT"]
[]
[null,"Ennakkomaksut aineettomista hyödykkeistä"]
[null,"Hankintameno 1.1. (+)",{"$f":"#REF!","v":{"$error":"#REF!"}}]
["102020","Lisäykset (investoinnit) (+)",{"$f":"#REF!","v":{"$error":"#REF!"}}]
["102021","Rahoitusosuudet tilikaudella",{"$f":"#REF!","v":{"$error":"#REF!"}}]
["102040","Vähennykset (-)",{"$f":"#REF!","v":{"$error":"#REF!"}}]
["102050","Siirrot erien välillä (+/-)",{"$f":"#REF!","v":{"$error":"#REF!"}}]
["102059","Ennakkomaksut aineettomista hyödykkeistä",{"$f":"SUM(C334:C338)","v":{"$error":"#REF!"}},{"$f":"SUM(D334:D338)","v":0}]
[]
["102199","Ennakkomaksut ja keskeneräiset aineettomat hyödykkeet",{"$f":"C339","v":{"$error":"#REF!"}},{"$f":"D339+#REF!","v":{"$error":"#REF!"}}]
[]
[]
[]
["109999","Aineettomat hyödykkeet",{"$f":"C298+C313+C328+C341","v":{"$error":"#REF!"}},{"$f":"D298+D313+D328+D341","v":{"$error":"#REF!"}}]
[]
[]
[]
[null,"AINEELLISET HYÖDYKKEET"]
[]
[null,"Maa- ja vesialueet"]
[null,"Hankintameno 1.1. (+)",{"$f":"#REF!-Ympäristötuotot!I25","v":{"$error":"#REF!"}}]
["110020","Lisäykset (investoinnit) (+)",{"$f":"#REF!-Ympäristötuotot!I26","v":{"$error":"#REF!"}}]
["110021","Rahoitusosuudet tilikaudella",{"$f":"#REF!","v":{"$error":"#REF!"}}]
["110040","Vähennykset (-)",{"$f":"#REF!-Ympäristötuotot!I27","v":{"$error":"#REF!"}}]
["110050","Siirrot erien välillä (+/-)",{"$f":"#REF!","v":{"$error":"#REF!"}}]
["110059","Hankintameno kauden lopussa",{"$f":"SUM(C352:C356)","v":{"$error":"#REF!"}},{"$f":"SUM(D352:D356)","v":0}]
["110080","Arvonalennukset (-) ja arvonalennusten palautus (+)",{"$f":"C228","v":{"$error":"#REF!"}},{"$f":"D228","v":0}]
["110089","Kertyneet arvonalennukset ja poistot kauden lopussa (-)",{"$f":"SUM(C358:C358)","v":{"$error":"#REF!"}},{"$f":"SUM(D358:D358)","v":0}]
["110099","Maa- ja vesialueet",{"$f":"C357+C359","v":{"$error":"#REF!"}},{"$f":"D357+D359","v":0}]
[]
[null,"Maa-ja vesialueiden arvonkorotukset"]
[null,"Maa- ja vesialueiden arvonkorotukset 1.1.",{"$f":"Ympäristötuotot!I25","v":0}]
["110520","Maa- ja vesialueiden arvonkorotusten lisäys",{"$f":"Ympäristötuotot!I26","v":0}]
["110540","Maa- ja vesialueiden arvonkorotusten vähennys",{"$f":"Ympäristötuotot!I27","v":0}]
["110549","Maa-ja vesialueiden arvonkorotukset",{"$f":"SUM(C363:C365)","v":0}]
[]
["110999","Maa- ja vesialueet",{"$f":"C360+C366","v":{"$error":"#REF!"}},{"$f":"D360+#REF!","v":{"$error":"#REF!"}}]
[]
[null,"Rakennukset"]
[null,"Hankintameno 1.1. (+)",{"$f":"#REF!-Ympäristötuotot!#REF!","v":{"$error":"#REF!"}}]
["111020","Lisäykset (investoinnit) (+)",{"$f":"#REF!","v":{"$error":"#REF!"}}]
["111021","Rahoitusosuudet tilikaudella (-)",{"$f":"#REF!","v":{"$error":"#REF!"}}]
["111040","Vähennykset (-)",{"$f":"#REF!-Ympäristötuotot!#REF!","v":{"$error":"#REF!"}}]
["111050","Siirrot erien välillä (+/-)",{"$f":"#REF!","v":{"$error":"#REF!"}}]
["111059","Hankintameno kauden lopussa",{"$f":"SUM(C371:C375)","v":{"$error":"#REF!"}},{"$f":"SUM(D371:D375)","v":0}]
["111080","Kauden poistot (-)",{"$f":"C207","v":{"$error":"#REF!"}},{"$f":"D207","v":0}]
["111085","Arvonalennukset (-) ja arvonalennusten palautukset (+)",{"$f":"C215","v":{"$error":"#REF!"}},{"$f":"D215","v":0}]
["111089","Kertyneet sumu-poistot ja arvonal. kauden lopussa (-)",{"$f":"SUM(C377:C378)","v":{"$error":"#REF!"}},{"$f":"SUM(D377:D378)","v":0}]
["111099","Rakennukset",{"$f":"C376+C379","v":{"$error":"#REF!"}},{"$f":"D376+D379","v":0}]
[]
[null,"Rakennusten arvonkorotukset"]
[null,"Rakennusten arvonkorotukset 1.1.",{"$f":"Ympäristötuotot!#REF!","v":{"$error":"#REF!"}}]
["112540","Rakennusten arvonkorotusten vähennys",{"$f":"Ympäristötuotot!#REF!","v":{"$error":"#REF!"}}]
["112549","Rakennusten arvonkorotukset",{"$f":"SUM(C383:C384)","v":{"$error":"#REF!"}}]
[]
["112999","Rakennukset",{"$f":"C380+C385","v":{"$error":"#REF!"}},{"$f":"D380+#REF!","v":{"$error":"#REF!"}}]
[]
[null,"Kiinteät rakenteet ja laitteet "]
[null,"Hankintameno 1.1. (+)",{"$f":"#REF!","v":{"$error":"#REF!"}}]
["113020","Lisäykset (investoinnit) (+)",{"$f":"#REF!","v":{"$error":"#REF!"}}]
["113021","Rahoitusosuudet tilikaudella (-)",{"$f":"#REF!","v":{"$error":"#REF!"}}]
["113040","Vähennykset (-)",{"$f":"#REF!","v":{"$error":"#REF!"}}]
["113050","Siirrot erien välillä (+/-)",{"$f":"#REF!","v":{"$error":"#REF!"}}]
["113059","Hankintameno kauden lopussa",{"$f":"SUM(C390:C394)","v":{"$error":"#REF!"}},{"$f":"SUM(D390:D394)","v":0}]
["113080","Kauden poistot (-)",{"$f":"C208","v":{"$error":"#REF!"}},{"$f":"D208","v":0}]
["113085","Arvonalennukset (-) ja arvonalennusten palautukset (+)",{"$f":"C216","v":{"$error":"#REF!"}},{"$f":"D216","v":0}]
["113089","Kertyneet sumu-poistot ja arvonal. kauden lopussa (-)",{"$f":"SUM(C396:C397)","v":{"$error":"#REF!"}},{"$f":"SUM(D396:D397)","v":0}]
["113099","Kiinteät rakenteet ja laitteet",{"$f":"C395+C398","v":{"$error":"#REF!"}},{"$f":"D395+D398","v":0}]
[]
[null,"Koneet ja kalusto"]
[null,"Hankintameno 1.1. (+)",{"$f":"#REF!","v":{"$error":"#REF!"}}]
["116020","Lisäykset (investoinnit) (+)",{"$f":"#REF!","v":{"$error":"#REF!"}}]
["116021","Rahoitusosuudet tilikaudella (+/-)",{"$f":"#REF!","v":{"$error":"#REF!"}}]
["116040","Vähennykset (-)",{"$f":"#REF!","v":{"$error":"#REF!"}}]
["116050","Siirrot erien välillä (+/-)",{"$f":"#REF!","v":{"$error":"#REF!"}}]
["116059","Hankintameno kauden lopussa",{"$f":"SUM(C402:C406)","v":{"$error":"#REF!"}},{"$f":"SUM(D402:D406)","v":0}]
["116080","Kauden poistot (-)",{"$f":"C209","v":{"$error":"#REF!"}},{"$f":"D209","v":0}]
["116085","Arvonalennukset (-) ja arvonalennusten palautukset (+)",{"$f":"C217","v":{"$error":"#REF!"}},{"$f":"D217","v":0}]
["116089","Kertyneet sumu-poistot ja arvonal. kauden lopussa (-)",{"$f":"SUM(C408:C409)","v":{"$error":"#REF!"}},{"$f":"SUM(D408:D409)","v":0}]
["116099","Koneet ja kalusto",{"$f":"C407+C410","v":{"$error":"#REF!"}},{"$f":"D407+D410","v":0}]
[]
[null,"Muut aineelliset hyödykkeet"]
[null,"Muut aineelliset hyödykkeet"]
[null,"Hankintameno 1.1. (+)",{"$f":"#REF!","v":{"$error":"#REF!"}}]
["118020","Lisäykset (investoinnit) (+)",{"$f":"#REF!","v":{"$error":"#REF!"}}]
["118021","Rahoitusosuudet tilikaudella (+/-)",{"$f":"#REF!","v":{"$error":"#REF!"}}]
["118040","Vähennykset (-)",{"$f":"#REF!","v":{"$error":"#REF!"}}]
["118050","Siirrot erien välillä (+/-)",{"$f":"#REF!","v":{"$error":"#REF!"}}]
["118059","Hankintameno kauden lopussa",{"$f":"SUM(C415:C419)","v":{"$error":"#REF!"}},{"$f":"SUM(D415:D419)","v":0}]
["118080","Kauden poistot (-)",{"$f":"C210","v":{"$error":"#REF!"}},{"$f":"D210","v":0}]
["118085","Arvonalennukset (-) ja arvonalennusten palautus (+)",{"$f":"C218","v":{"$error":"#REF!"}},{"$f":"D218","v":0}]
["118089","Kertyneet sumu-poistot ja arvonal. kauden lopussa (-)",{"$f":"SUM(C421:C422)","v":{"$error":"#REF!"}},{"$f":"SUM(D421:D422)","v":0}]
["118099","Muut aineelliset hyödykkeet",{"$f":"C420+C423","v":{"$error":"#REF!"}},{"$f":"D420+D423","v":0}]
[]
["118999","Muut aineelliset hyödykkeet",{"$f":"C424","v":{"$error":"#REF!"}},{"$f":"D424+#REF!+#REF!","v":{"$error":"#REF!"}}]
[]
[null,"Ennakkomaksut ja keskeneräiset hankinnat"]
[null,"Ennakkomaksut"]
[null,"Hankintameno 1.1. (+)",{"$f":"#REF!","v":{"$error":"#REF!"}}]
["119020","Lisäykset (investoinnit) (+)",{"$f":"#REF!","v":{"$error":"#REF!"}}]
["119021","Rahoitusosuudet tilikaudella (+/-)",{"$f":"#REF!","v":{"$error":"#REF!"}}]
["119040","Vähennykset (-)",{"$f":"#REF!","v":{"$error":"#REF!"}}]
["119050","Siirrot erien välillä (+/-)",{"$f":"#REF!","v":{"$error":"#REF!"}}]
["119059","Ennakkomaksut",{"$f":"SUM(C430:C434)","v":{"$error":"#REF!"}},{"$f":"SUM(D430:D434)","v":0}]
[]
["119599","Ennakkomaksut ja keskeneräiset hankinnat",{"$f":"C435","v":{"$error":"#REF!"}},{"$f":"D435+#REF!","v":{"$error":"#REF!"}}]
[]
[]
["119999","Aineelliset hyödykkeet",{"$f":"C368+C387+C399+C411+C426+C437","v":{"$error":"#REF!"}},{"$f":"D368+D387+D399+D411+D426+D437","v":{"$error":"#REF!"}}]
[]
[]
[]
[null,"SIJOITUKSET"]
[null,"Osakkeet ja osuudet"]
[null,"Osakkeet ja osuudet tytäryhteisöissä "]
[null,"Hankintameno 1.1. (+)",{"$f":"#REF!","v":{"$error":"#REF!"}}]
["120120","Lisäykset (investoinnit) (+)",{"$f":"#REF!","v":{"$error":"#REF!"}}]
["120140","Vähennykset (-)",{"$f":"#REF!","v":{"$error":"#REF!"}}]
["120150","Siirrot erien välillä (+/-)",{"$f":"#REF!","v":{"$error":"#REF!"}}]
["120159","Hankintameno kauden lopussa",{"$f":"SUM(C447:C450)","v":{"$error":"#REF!"}},{"$f":"SUM(D447:D450)","v":0}]
["120185","Arvonalennukset kaudella (-)"]
["120189","Kertyneet arvonalennukset kauden lopussa (-)",{"$f":"SUM(C452:C452)","v":0},{"$f":"SUM(D452:D452)","v":0}]
["120199","Osakkeet ja osuudet tytäryhteisöissä",{"$f":"C451+C453","v":{"$error":"#REF!"}},{"$f":"D451+D453","v":0}]
[]
[null,"Kuntayhtymäosuudet  "]
[null,"Hankintameno 1.1. (+)",{"$f":"#REF!","v":{"$error":"#REF!"}}]
["120320","Lisäykset (investoinnit) (+)",{"$f":"#REF!","v":{"$error":"#REF!"}}]
["120340","Vähennykset (-)",{"$f":"#REF!","v":{"$error":"#REF!"}}]
["120350","Siirrot erien välillä (+/-)",{"$f":"#REF!","v":{"$error":"#REF!"}}]
["120359","Hankintameno kauden lopussa",{"$f":"SUM(C457:C460)","v":{"$error":"#REF!"}},{"$f":"SUM(D457:D460)","v":0}]
["120385","Arvonalennukset kaudella (-)"]
["120389","Kertyneet arvonalennukset kauden lopussa (-)",{"$f":"SUM(C462:C462)","v":0},{"$f":"SUM(D462:D462)","v":0}]
["120399","Kuntayhtymäosuudet",{"$f":"C461+C463","v":{"$error":"#REF!"}},{"$f":"D461+D463","v":0}]
[]
[null,"Osakkeet ja osuudet osakkuus- ja muissa omistusyhteysyhteisöissä  "]
[null,"Osakkuusyhteisöosakkeet ja -osuudet  "]
[null,"Hankintameno 1.1. (+)",{"$f":"#REF!","v":{"$error":"#REF!"}}]
["120520","Lisäykset (investoinnit) (+)",{"$f":"#REF!","v":{"$error":"#REF!"}}]
["120540","Vähennykset (-)",{"$f":"#REF!","v":{"$error":"#REF!"}}]
["120550","Siirrot erien välillä (+/-)",{"$f":"#REF!","v":{"$error":"#REF!"}}]
["120559","Hankintameno kauden lopussa",{"$f":"SUM(C468:C471)","v":{"$error":"#REF!"}},{"$f":"SUM(D468:D471)","v":0}]
["120585","Arvonalennukset kaudella (-)"]
["120589","Kertyneet arvonalennukset ja pääomaosuusviennit kauden lopussa (-)",{"$f":"SUM(C473:C473)","v":0},{"$f":"SUM(D473:D473)","v":0}]
["120599","Osakkuusyhteisöosakkeet ja -osuudet",{"$f":"C472+C474","v":{"$error":"#REF!"}},{"$f":"D472+D474","v":0}]
[]
[null,"Muut osakkeet ja osuudet"]
[null,"Hankintameno 1.1. (+)",{"$f":"#REF!","v":{"$error":"#REF!"}}]
["121220","Lisäykset (investoinnit) (+)",{"$f":"#REF!","v":{"$error":"#REF!"}}]
["121240","Vähennykset (-)",{"$f":"#REF!","v":{"$error":"#REF!"}}]
["121250","Siirrot erien välillä (+/-)",{"$f":"#REF!","v":{"$error":"#REF!"}}]
["121259","Hankintameno kauden lopussa",{"$f":"SUM(C478:C481)","v":{"$error":"#REF!"}},{"$f":"SUM(D478:D481)","v":0}]
["121285","Arvonalennukset kaudella (-)"]
["121289","Kertyneet arvonalennukset kauden lopussa (-)",{"$f":"SUM(C483:C483)","v":0},{"$f":"SUM(D483:D483)","v":0}]
["121299","Muut osakkeet ja osuudet",{"$f":"C482+C484","v":{"$error":"#REF!"}},{"$f":"D482+D484","v":0}]
[]
[null,"Osakkeiden arvonkorotukset"]
[null,"Osakkeiden arvonkorotukset 1.1",{"$f":"Ympäristötuotot!#REF!","v":{"$error":"#REF!"}}]
["121420","Osakkeiden arvonkorotusten lisäys",{"$f":"Ympäristötuotot!#REF!","v":{"$error":"#REF!"}}]
["121440","Osakkeiden arvonkorotusten vähennys",{"$f":"Ympäristötuotot!#REF!","v":{"$error":"#REF!"}}]
["121449","Osakkeiden arvonkorotukset",{"$f":"SUM(C488:C490)","v":{"$error":"#REF!"}},{"$f":"SUM(D488:D490)","v":0}]
[]
["121989","Muut osakkeet ja osuudet sekä osakkeiden arvonkorotukset",{"$f":"SUM(C485,C491)","v":{"$error":"#REF!"}},{"$f":"SUM(D485,D491,#REF!)","v":{"$error":"#REF!"}}]
[]
[null,"Joukkovelkakirjalainasaamiset  "]
["121508","Jvk-saamiset konserniyhteisöiltä",{"$f":"#REF!","v":{"$error":"#REF!"}}]
["121608","Jvk-saamiset jäsenkuntayhtymiltä",{"$f":"#REF!","v":{"$error":"#REF!"}}]
["121700","Jvk-saamiset osakkuus- ja muilta omistusyhteysyhteisöiltä",{"$f":"#REF!","v":{"$error":"#REF!"}}]
["122100","Jvk-saamiset muilta",{"$f":"#REF!","v":{"$error":"#REF!"}}]
["122989","Joukkovelkakirjasaamiset",{"$f":"SUM(C496:C499)","v":{"$error":"#REF!"}},{"$f":"SUM(D496:D499)","v":0}]
[]
[null,"Muut lainasaamiset  "]
["123108","Muut lainasaamiset konserniyhteisöiltä",{"$f":"#REF!","v":{"$error":"#REF!"}}]
["123208","Muut lainasaamiset jäsenkuntayhtymiltä",{"$f":"#REF!","v":{"$error":"#REF!"}}]
["123300","Muut lainasaamiset osakkuus- ja muilta omistusyhteysyhteisöiltä",{"$f":"#REF!","v":{"$error":"#REF!"}}]
["123800","Muut lainasaamiset muilta",{"$f":"#REF!","v":{"$error":"#REF!"}}]
["123989","Muut lainasaamiset",{"$f":"SUM(C503:C506)","v":{"$error":"#REF!"}},{"$f":"SUM(D503:D506)","v":0}]
[]
[null,"Muut saamiset"]
["124108","Muut saamiset konserniyhteisöiltä",{"$f":"#REF!","v":{"$error":"#REF!"}}]
["124208","Muut saamiset jäsenkuntayhtymiltä",{"$f":"#REF!","v":{"$error":"#REF!"}}]
["124300","Muut saamiset osakkuus- ja muilta omistusyhteysyhteisöiltä",{"$f":"#REF!","v":{"$error":"#REF!"}}]
["124600","Muut saamiset muilta",{"$f":"#REF!","v":{"$error":"#REF!"}}]
["124989","Muut saamiset",{"$f":"SUM(C510:C513)","v":{"$error":"#REF!"}},{"$f":"SUM(D510:D513)","v":0}]
[]
["129999","Sijoitukset",{"$f":"C454+C464+C475+C493+C500+C507+C514","v":{"$error":"#REF!"}},{"$f":"D454+D464+D475+#REF!+D493+D500+D507+D514","v":{"$error":"#REF!"}}]
[]
["139999","PYSYVÄT VASTAAVAT",{"$f":"C345+C440+C516","v":{"$error":"#REF!"}},{"$f":"D345+D440+D516","v":{"$error":"#REF!"}}]
[]
[null,"TOIMEKSIANTOJEN VARAT"]
[]
[null,"Valtion toimeksiannot    "]
["140000","Valtion toimeksiannot",{"$f":"#REF!","v":{"$error":"#REF!"}}]
["142989","Valtion toimeksiannot",{"$f":"SUM(C523:C523)","v":{"$error":"#REF!"}},{"$f":"SUM(D523:D523)","v":0}]
[]
[null,"Lahjoitusrahastojen erityiskatteet "]
["144000","Lahjoitusrahastojen erityiskatteet",{"$f":"#REF!","v":{"$error":"#REF!"}}]
["145989","Lahjoitusrahastojen erityiskatteet",{"$f":"SUM(C527:C527)","v":{"$error":"#REF!"}},{"$f":"SUM(D527:D527)","v":0}]
[]
[null,"Muut toimeksiantojen varat"]
["148000","Muut toimeksiannot",{"$f":"#REF!","v":{"$error":"#REF!"}}]
["148999","Muut toimeksiantojen varat",{"$f":"SUM(C531:C531)","v":{"$error":"#REF!"}},{"$f":"SUM(D531:D531)","v":0}]
[]
["149999","TOIMEKSIANTOJEN VARAT",{"$f":"C524+C528+C532","v":{"$error":"#REF!"}},{"$f":"D524+D528+D532","v":0}]
[]
[]
[]
[null,"VAIHTUVAT VASTAAVAT"]
[null,"VAIHTO-OMAISUUS"]
["150000","Aineet ja tarvikkeet",{"$f":"#REF!","v":{"$error":"#REF!"}}]
["153000","Keskeneräiset tuotteet",{"$f":"#REF!","v":{"$error":"#REF!"}}]
["155000","Valmiit tuotteet",{"$f":"#REF!","v":{"$error":"#REF!"}}]
["157000","Muu vaihto-omaisuus",{"$f":"#REF!","v":{"$error":"#REF!"}}]
["159000","Ennakkomaksut vaihto-omaisuudesta",{"$f":"#REF!","v":{"$error":"#REF!"}}]
["159999","Vaihto-omaisuus",{"$f":"SUM(C540:C544)","v":{"$error":"#REF!"}},{"$f":"SUM(D540:D544)","v":0}]
[]
[null,"SAAMISET"]
[null,"PITKÄAIKAISET SAAMISET"]
[null,"Myyntisaamiset"]
["160008","Myyntisaamiset konserniyhteisoilta",{"$f":"#REF!","v":{"$error":"#REF!"}}]
["160508","Myyntisaamiset jäsenkuntayhtymiltä",{"$f":"#REF!","v":{"$error":"#REF!"}}]
["161000","Pitkäaikaiset omistusyhteysyritysmyyntisaamiset",{"$f":"#REF!","v":{"$error":"#REF!"}}]
["162000","Myyntisaamiset muilta",{"$f":"#REF!","v":{"$error":"#REF!"}}]
["162989","Myyntisaamiset",{"$f":"SUM(C550:C553)","v":{"$error":"#REF!"}},{"$f":"SUM(D550:D553)","v":0}]
[]
[null,"Lainasaamiset "]
["163008","Lainasaamiset konserniyhteisoilta",{"$f":"#REF!","v":{"$error":"#REF!"}}]
["163508","Lainasaamiset jäsenkuntayhtymiltä",{"$f":"#REF!","v":{"$error":"#REF!"}}]
["164000","Lainasaamiset osakkuus- ja muilta omistusyhteys-yhteisöiltä",{"$f":"#REF!","v":{"$error":"#REF!"}}]
["165500","Lainasaamiset muilta",{"$f":"#REF!","v":{"$error":"#REF!"}}]
["165989","Lainasaamiset",{"$f":"SUM(C557:C560)","v":{"$error":"#REF!"}},{"$f":"SUM(D557:D560)","v":0}]
[]
[null,"Muut saamiset "]
["166008","Muut saamiset konserniyhteisoilta",{"$f":"#REF!","v":{"$error":"#REF!"}}]
["166208","Muut saamiset jäsenkuntayhtymiltä",{"$f":"#REF!","v":{"$error":"#REF!"}}]
["166500","Muut saamiset osakkuus- ja muilta omistusyhteysyhteisöiltä",{"$f":"#REF!","v":{"$error":"#REF!"}}]
["168800","Muut saamiset",{"$f":"#REF!","v":{"$error":"#REF!"}}]
["168989","Muut saamiset",{"$f":"SUM(C564:C567)","v":{"$error":"#REF!"}},{"$f":"SUM(D564:D567)","v":0}]
[]
[null,"Siirtosaamiset  "]
["171508","Muut siirtosaamiset konserniyhteisoilta",{"$f":"#REF!","v":{"$error":"#REF!"}}]
["171608","Muut siirtosaamiset jäsenkuntayhtymiltä",{"$f":"#REF!","v":{"$error":"#REF!"}}]
["171700","Muut siirtosaamiset osakkuus- ja muilta omistusyhteysyhteisöiltä",{"$f":"#REF!","v":{"$error":"#REF!"}}]
["171900","Muut siirtosaamiset muilta",{"$f":"#REF!","v":{"$error":"#REF!"}}]
["171969","Muut siirtosaamiset",{"$f":"SUM(C571:C574)","v":{"$error":"#REF!"}},{"$f":"SUM(D571:D574)","v":0}]
["171979","Siirtosaamiset",{"$f":"C575","v":{"$error":"#REF!"}},{"$f":"#REF!+D575","v":{"$error":"#REF!"}}]
[]
["171999","Pitkäaikaiset saamiset",{"$f":"C554+C561+C568+C576","v":{"$error":"#REF!"}},{"$f":"D554+D561+#REF!+D568+D576+#REF!","v":{"$error":"#REF!"}}]
[]
[null,"LYHYTAIKAISET SAAMISET"]
[null,"Myyntisaamiset "]
["172008","Myyntisaamiset konserniyhteisoilta",{"$f":"#REF!","v":{"$error":"#REF!"}}]
["172508","Myyntisaamiset jäsenkuntayhtymiltä",{"$f":"#REF!","v":{"$error":"#REF!"}}]
["173000","Myyntisaamiset osakkuus- ja muilta omistusyhteysyhteisöiltä",{"$f":"#REF!","v":{"$error":"#REF!"}}]
["174000","Myyntisaamiset muilta",{"$f":"#REF!","v":{"$error":"#REF!"}}]
["174989","Myyntisaamiset",{"$f":"SUM(C582:C585)","v":{"$error":"#REF!"}},{"$f":"SUM(D582:D585)","v":0}]
[]
[null,"Lainasaamiset  "]
["175008","Lainasaamiset konserniyhteisoilta",{"$f":"#REF!","v":{"$error":"#REF!"}}]
[175108,"Konsernitilisaamiset",{"$f":"#REF!","v":{"$error":"#REF!"}}]
["175508","Lainasaamiset jäsenkuntayhtymiltä",{"$f":"#REF!","v":{"$error":"#REF!"}}]
["175800","Lainasaamiset osakkuus- ja muilta omistusyhteys-yhteisöiltä",{"$f":"#REF!","v":{"$error":"#REF!"}}]
["177000","Lainasaamiset muilta",{"$f":"#REF!","v":{"$error":"#REF!"}}]
["177989","Lainasaamiset",{"$f":"SUM(C589:C593)","v":{"$error":"#REF!"}},{"$f":"SUM(D589:D593)","v":0}]
[]
[null,"Muut saamiset "]
["178008","Muut saamiset konserniyhteisöiltä",{"$f":"#REF!","v":{"$error":"#REF!"}}]
["178508","Muut saamiset jäsenkuntayhtymiltä",{"$f":"#REF!","v":{"$error":"#REF!"}}]
["179000","Muut saamiset osakkuus- ja muilta omistusyhteysyhteisöiltä",{"$f":"#REF!","v":{"$error":"#REF!"}}]
["181000","Muut saamiset",{"$f":"#REF!","v":{"$error":"#REF!"}}]
["181489","Muut saamiset",{"$f":"SUM(C597:C600)","v":{"$error":"#REF!"}},{"$f":"SUM(D597:D600)","v":0}]
[]
[null,"Siirtosaamiset "]
["182208","Muut siirtosaamiset konserniyhteisoilta",{"$f":"#REF!","v":{"$error":"#REF!"}}]
["182308","Muut siirtosaamiset jäsenkuntayhtymiltä",{"$f":"#REF!","v":{"$error":"#REF!"}}]
["182400","Muut siirtosaamiset osakkuus- ja muilta omistusyhteysyhteisöiltä",{"$f":"#REF!","v":{"$error":"#REF!"}}]
["182600","Muut siirtosaamiset muilta",{"$f":"#REF!","v":{"$error":"#REF!"}}]
["182679","Muut siirtosaamiset",{"$f":"SUM(C604:C607)","v":{"$error":"#REF!"}},{"$f":"SUM(D604:D607)","v":0}]
["182689","Siirtosaamiset",{"$f":"C608","v":{"$error":"#REF!"}},{"$f":"#REF!+D608","v":{"$error":"#REF!"}}]
[]
["182889","Lyhytaikaiset saamiset",{"$f":"C586+C594+C601+C609","v":{"$error":"#REF!"}},{"$f":"D586+D594+#REF!+D601+D609","v":{"$error":"#REF!"}}]
[]
["182999","Saamiset",{"$f":"C578+C611","v":{"$error":"#REF!"}},{"$f":"D578+D611","v":{"$error":"#REF!"}}]
[]
[]
[null,"RAHOITUSARVOPAPERIT"]
[null,"Osakkeet ja osuudet"]
["183000","Osakkeet ja osuudet",{"$f":"#REF!","v":{"$error":"#REF!"}}]
["184989","Osakkeet ja osuudet",{"$f":"SUM(C618:C618)","v":{"$error":"#REF!"}},{"$f":"SUM(D618:D618)","v":0}]
[]
[null,"Sijoitukset rahamarkkinainstrumentteihin"]
["185000","Sijoitukset rahamarkkinainstrumentteihin",{"$f":"#REF!","v":{"$error":"#REF!"}}]
["186989","Sijoitukset rahamarkkinainstrumentteihin",{"$f":"SUM(C622:C622)","v":{"$error":"#REF!"}},{"$f":"SUM(D622:D622)","v":0}]
[]
[null,"Joukkovelkakirjalainasaamiset"]
["188000","Jvk-saamiset muilta",{"$f":"#REF!","v":{"$error":"#REF!"}}]
["188989","Joukkovelkakirjalainasaamiset",{"$f":"SUM(C626:C626)","v":{"$error":"#REF!"}},{"$f":"SUM(D626:D626)","v":0}]
[]
[null,"Muut arvopaperit"]
["189000","Muut arvopaperit",{"$f":"#REF!","v":{"$error":"#REF!"}}]
["189979","Muut arvopaperit",{"$f":"C630","v":{"$error":"#REF!"}},{"$f":"D630","v":0}]
[]
["189989","Rahoitusarvopaperit",{"$f":"C619+C623+C627+C631","v":{"$error":"#REF!"}},{"$f":"D619+D623+D627+D631","v":0}]
[]
[null,"Rahat ja pankkisaamiset"]
["190000","Rahat ja pankkisaamiset",{"$f":"#REF!","v":{"$error":"#REF!"}}]
["199979","Rahat ja pankkisaamiset",{"$f":"SUM(C636:C636)","v":{"$error":"#REF!"}},{"$f":"SUM(D636:D636)","v":0}]
[]
["199989","VAIHTUVAT VASTAAVAT",{"$f":"C545+C613+C633+C637","v":{"$error":"#REF!"}},{"$f":"D545+D613+D633+D637","v":{"$error":"#REF!"}}]
[null," "]
[]
["199999","VASTAAVAA",{"$f":"C518+C534+C639","v":{"$error":"#REF!"}},{"$f":"D518+D534+D639","v":{"$error":"#REF!"}}]
[]
[]
[]
[null,"VASTATTAVAA "]
[]
[null,"OMA PÄÄOMA"]
[]
[null,"PERUSPÄÄOMA"]
[null,"Peruspääoma 1.1.",{"$f":"#REF!","v":{"$error":"#REF!"}}]
["200010","Peruspääoma lisäykset",{"$f":"#REF!","v":{"$error":"#REF!"}}]
["200030","Peruspääoma vähennykset",{"$f":"#REF!","v":{"$error":"#REF!"}}]
["200050","Peruspääoma siirrot erien välillä",{"$f":"#REF!","v":{"$error":"#REF!"}}]
["200089","Peruspääoma",{"$f":"SUM(C651:C654)","v":{"$error":"#REF!"}},{"$f":"SUM(D651:D654)","v":0}]
[]
[null,"Yhdistysten ja säätiöiden peruspääomat"]
[null,"Yhdistysten ja säätiöiden peruspääomat 1.1.",{"$f":"#REF!","v":{"$error":"#REF!"}}]
[200110,"Yhdistysten ja säätiöiden peruspääomat lisäykset",{"$f":"#REF!","v":{"$error":"#REF!"}}]
[200130,"Yhdistysten ja säätiöiden peruspääomat vähennykset",{"$f":"#REF!","v":{"$error":"#REF!"}}]
[200150,"Yhdistysten ja säätiöiden peruspääomat siirrot erien välillä",{"$f":"#REF!","v":{"$error":"#REF!"}}]
[null,"Yhdistysten ja säätiöiden peruspääomat",{"$f":"SUM(C658:C661)","v":{"$error":"#REF!"}}]
[]
[null,"Arvonkorotusrahasto"]
[null,"Arvonkorotusrahasto 1.1.",{"$f":"#REF!","v":{"$error":"#REF!"}}]
["201010","Arvonkorotusrahasto lisäykset",{"$f":"#REF!","v":{"$error":"#REF!"}}]
["201030","Arvonkorotusrahasto vähennykset",{"$f":"#REF!","v":{"$error":"#REF!"}}]
["201050","Arvonkorotusrahasto siirrot erien välillä",{"$f":"#REF!","v":{"$error":"#REF!"}}]
["201089","Arvonkorotusrahasto",{"$f":"SUM(C665:C668)","v":{"$error":"#REF!"}},{"$f":"SUM(D665:D668)","v":0}]
[]
[null,"RAHASTOT"]
[]
[null,"Muut omat rahastot"]
[null,"Sijoitetun vapaan oman pääoman rahasto"]
[null,"Vararahasto"]
[null,"Vararahasto 1.1."]
["201110","Vararahasto lisäykset"]
["201130","Vararahasto vähennykset"]
["201150","Vararahasto siirrot erien välillä"]
["201189","Vararahasto",{"$f":"SUM(C676:C679)","v":0},{"$f":"SUM(D676:D679)","v":0}]
[]
[null,"Rahastopääomat "]
[null,"Rahastopääomat 1.1.",{"$f":"#REF!+#REF!","v":{"$error":"#REF!"}}]
["201510","Rahastopääomat lisäykset",{"$f":"#REF!+#REF!","v":{"$error":"#REF!"}}]
["201530","Rahastopääomat vähennykset",{"$f":"#REF!+#REF!","v":{"$error":"#REF!"}}]
["201550","Rahastopääomat siirrot erien välillä",{"$f":"#REF!+#REF!","v":{"$error":"#REF!"}}]
["201589","Rahastopääomat",{"$f":"SUM(C683:C686)","v":{"$error":"#REF!"}},{"$f":"SUM(D683:D686)","v":0}]
[]
[null,"Ylikurssirahasto"]
[null,"Ylikurssirahasto 1.1.",{"$f":"#REF!","v":{"$error":"#REF!"}}]
["201610","Ylikurssirahasto lisaykset",{"$f":"#REF!","v":{"$error":"#REF!"}}]
["201630","Ylikurssirahasto vahennykset",{"$f":"#REF!","v":{"$error":"#REF!"}}]
["201650","Ylikurssirahasto siirrot erien valilla",{"$f":"#REF!","v":{"$error":"#REF!"}}]
["201689","Ylikurssirahasto",{"$f":"SUM(C690:C693)","v":{"$error":"#REF!"}},{"$f":"SUM(D690:D693)","v":0}]
[]
["209999","Muut omat rahastot",{"$f":"C680+C687+C694","v":{"$error":"#REF!"}},{"$f":"D680+D687+D694+#REF!","v":{"$error":"#REF!"}}]
[]
[null,"Edellisten tilikausien ylijäämä (alijäämä)"]
[null,"Edellisten tilikausien ylijäämä (alijäämä) 1.1.",{"$f":"#REF!","v":{"$error":"#REF!"}}]
["204015","Osingonjako"]
["204008","Osingonjako, sisäiset"]
["204010","Aikaisempiin tilikausiin liittyvät korjaukset"]
["204050","Siirrot",{"$f":"#REF!","v":{"$error":"#REF!"}}]
["204055","Keskikurssiero"]
["204056","Muuntoero"]
["204040","Edellisten tilikausien ylijäämä (alijäämä) muutos",{"$f":"#REF!+#REF!","v":{"$error":"#REF!"}}]
["204089","Edellisten tilikausien ylijäämä (alijäämä)",{"$f":"SUM(C699:C706)","v":{"$error":"#REF!"}},{"$f":"SUM(D699:D706)","v":0}]
[]
[null,{"$f":"B711","v":"Tilikauden ylijäämä (alijäämä)"}]
["205000","Tilikauden ylijäämä (alijäämä)",{"$f":"C274","v":{"$error":"#REF!"}},{"$f":"D274","v":{"$error":"#REF!"}}]
["205089","Tilikauden ylijäämä (alijäämä)",{"$f":"C710","v":{"$error":"#REF!"}},{"$f":"D710","v":{"$error":"#REF!"}}]
[]
[]
["209969","OMA PÄÄOMA",{"$f":"C655+C662+C669+C696+C707+C711","v":{"$error":"#REF!"}},{"$f":"D655+#REF!+#REF!+D669+D696+D707+#REF!+D711","v":{"$error":"#REF!"}}]
[]
[null,"Vähemmistöosuudet"]
["209900","Vähemmistöosuus",{"$f":"#REF!","v":{"$error":"#REF!"}}]
["209979","VÄHEMMISTÖOSUUDET",{"$f":"C717","v":{"$error":"#REF!"}},{"$f":"D717","v":0}]
[]
[null,"Poistoero ja vapaaehtoiset varaukset  "]
["210000","Poistoero",{"$f":"#REF!","v":{"$error":"#REF!"}}]
["211000","Vapaaehtoiset varaukset",{"$f":"#REF!","v":{"$error":"#REF!"}}]
["211989","POISTOERO JA VAPAAEHTOISET VARAUKSET",{"$f":"SUM(C721:C722)","v":{"$error":"#REF!"}},{"$f":"SUM(D721:D722)","v":0}]
[]
[]
[null,"PAKOLLISET VARAUKSET"]
[null,"Eläkevaraukset "]
["212000","Eläkevaraus",{"$f":"#REF!","v":{"$error":"#REF!"}}]
["212089","Eläkevaraukset",{"$f":"C728","v":{"$error":"#REF!"}},{"$f":"D728","v":0}]
[]
[null,"Muut pakolliset varaukset"]
["212800","Muut pakolliset varaukset",{"$f":"#REF!","v":{"$error":"#REF!"}}]
["213089","Muut pakolliset varaukset",{"$f":"SUM(C732:C732)","v":{"$error":"#REF!"}},{"$f":"SUM(D732:D732)","v":0}]
[]
["213989","PAKOLLISET VARAUKSET",{"$f":"C729+C733","v":{"$error":"#REF!"}},{"$f":"D729+D733","v":0}]
[]
[null,"TOIMEKSIANTOJEN PÄÄOMAT  "]
[null,"Valtion toimeksiannot"]
["230000","Valtion toimeksiannot",{"$f":"#REF!","v":{"$error":"#REF!"}}]
["232489","Valtion toimeksiannot",{"$f":"SUM(C739:C739)","v":{"$error":"#REF!"}},{"$f":"SUM(D739:D739)","v":0}]
[]
[null,"Lahjoitusrahastojen pääomat  "]
["232500","Lahjoitusrahastojen pääomat",{"$f":"#REF!","v":{"$error":"#REF!"}}]
["232589","Lahjoitusrahastojen pääomat",{"$f":"SUM(C743)","v":{"$error":"#REF!"}},{"$f":"SUM(D743)","v":0}]
[]
[null,"Muut toimeksiantojen pääomat "]
["233000","Muut toimeksiantojen pääomat",{"$f":"#REF!","v":{"$error":"#REF!"}}]
["233589","Muut toimeksiantojen pääomat",{"$f":"SUM(C747:C747)","v":{"$error":"#REF!"}},{"$f":"SUM(D747:D747)","v":0}]
[]
["239989","TOIMEKSIANTOJEN PÄÄOMAT",{"$f":"C740+C744+C748","v":{"$error":"#REF!"}},{"$f":"D740+D744+D748","v":0}]
[]
[null,"Konsernireservi"]
["209980","Konsernireservi",{"$f":"#REF!","v":{"$error":"#REF!"}}]
["209989","KONSERNIRESERVI",{"$f":"C753","v":{"$error":"#REF!"}},{"$f":"D753","v":0}]
[]
[null,"VIERAS PÄÄOMA"]
[]
[null,{"$f":"B812","v":"Pitkäaikainen vieras pääoma"}]
[null,"Pitkäaikainen korollinen vieras pääoma"]
[null,"Joukkovelkakirjalainat"]
["240000","Joukkovelkakirjalainat",{"$f":"#REF!","v":{"$error":"#REF!"}}]
["240989","Joukkovelkakirjalainat",{"$f":"SUM(C761:C761)","v":{"$error":"#REF!"}},{"$f":"SUM(D761:D761)","v":0}]
[]
[null,"Lainat rahoitus- ja vakuutuslaitoksilta "]
["241000","Lainat rahoitus- ja vakuutuslaitoksilta",{"$f":"#REF!","v":{"$error":"#REF!"}}]
["241489","Lainat rahoitus- ja vakuutuslaitoksilta",{"$f":"SUM(C765)","v":{"$error":"#REF!"}},{"$f":"SUM(D765)","v":0}]
[]
[null,"Lainat julkisyhteisöiltä"]
["242000","Lainat julkisyhteisöiltä",{"$f":"#REF!","v":{"$error":"#REF!"}}]
["242108","Lainat kunnilta ja kuntayhtymiltä",{"$f":"#REF!","v":{"$error":"#REF!"}}]
["242989","Lainat julkisyhteisöiltä",{"$f":"SUM(C769:C770)","v":{"$error":"#REF!"}},{"$f":"SUM(D769:D770)","v":0}]
[]
[null,"Lainat muilta luotonantajilta"]
["243000","Lainat muilta luotonantajilta",{"$f":"#REF!","v":{"$error":"#REF!"}}]
["243008","Lainat muilta luotonantajilta, sisäiset",{"$f":"#REF!","v":{"$error":"#REF!"}}]
["243989","Lainat muilta luotonantajilta",{"$f":"SUM(C774:C775)","v":{"$error":"#REF!"}},{"$f":"SUM(D774:D775)","v":0}]
["243999","Pitkäaikainen korollinen vieras pääoma",{"$f":"SUM(C762+C766+C771+C776)","v":{"$error":"#REF!"}},{"$f":"SUM(D762+D766+#REF!+#REF!+D771+D776)","v":{"$error":"#REF!"}}]
[]
[null,"Pitkäaikainen koroton vieras pääoma"]
[null,"Saadut ennakot"]
["244008","Saadut ennakot tytäryhteisöiltä",{"$f":"#REF!","v":{"$error":"#REF!"}}]
["244208","Saadut ennakot jäsenkuntayhtymiltä",{"$f":"#REF!","v":{"$error":"#REF!"}}]
["244500","Saadut ennakot osakkuus- ja muilta omitusyhteysyhteisöiltä",{"$f":"#REF!","v":{"$error":"#REF!"}}]
["244800","Saadut ennakot muilta",{"$f":"#REF!","v":{"$error":"#REF!"}}]
["244989","Saadut ennakot",{"$f":"SUM(C781:C784)","v":{"$error":"#REF!"}},{"$f":"SUM(D781:D784)","v":0}]
[]
[null,"Ostovelat"]
["245008","Ostovelat konserniyhteisoilta",{"$f":"#REF!","v":{"$error":"#REF!"}}]
["245108","Ostovelat jäsenkuntayhtymille",{"$f":"#REF!","v":{"$error":"#REF!"}}]
["245200","Ostovelat osakkuus- ja muille omistusyhteysyhteisöille",{"$f":"#REF!","v":{"$error":"#REF!"}}]
["245400","Ostovelat muille",{"$f":"#REF!","v":{"$error":"#REF!"}}]
["245489","Ostovelat",{"$f":"SUM(C788:C791)","v":{"$error":"#REF!"}},{"$f":"SUM(D788:D791)","v":0}]
[]
[null,"Muut velat  "]
["246008","Muut velat konserniyhteisöillle",{"$f":"#REF!","v":{"$error":"#REF!"}}]
["246208","Muut velat jäsenkuntayhtymille",{"$f":"#REF!","v":{"$error":"#REF!"}}]
["246300","Muut velat osakkuus- ja muille omistusyhteysyhteisöille",{"$f":"#REF!","v":{"$error":"#REF!"}}]
["246800","Muut velat muille",{"$f":"#REF!","v":{"$error":"#REF!"}}]
["246900","Muut velat liittymismaksut",{"$f":"#REF!","v":{"$error":"#REF!"}}]
["246908","Muut velat liittymismaksut, sisäiset",{"$f":"#REF!","v":{"$error":"#REF!"}}]
["246989","Muut velat",{"$f":"SUM(C795:C800)","v":{"$error":"#REF!"}},{"$f":"SUM(D795:D800)","v":0}]
[]
[null,"Siirtovelat  "]
["247908","Muut siirtovelat konserniyhteisoilta",{"$f":"#REF!","v":{"$error":"#REF!"}}]
["247918","Muut siirtovelat jäsenkuntayhtymille",{"$f":"#REF!","v":{"$error":"#REF!"}}]
["247920","Muut siirtovelat osakkuus- ja muille omistusyhteysyhteisöille",{"$f":"#REF!","v":{"$error":"#REF!"}}]
["247980","Muut siirtovelat",{"$f":"#REF!","v":{"$error":"#REF!"}}]
["247989","Muut siirtovelat",{"$f":"C807","v":{"$error":"#REF!"}},{"$f":"D807","v":0}]
["247999","Siirtovelat",{"$f":"C808","v":{"$error":"#REF!"}},{"$f":"#REF!+D808","v":{"$error":"#REF!"}}]
["248999","Pitkäaikainen koroton vieras pääoma",{"$f":"SUM(C785+C792+C801+C809)","v":{"$error":"#REF!"}},{"$f":"SUM(D785+D792+#REF!+D801+D809)","v":{"$error":"#REF!"}}]
[]
["249999","Pitkäaikainen vieras pääoma",{"$f":"C762+C766+C771+C776+C785+C792+C801+C809","v":{"$error":"#REF!"}},{"$f":"D762+D766+#REF!+#REF!+D771+D776+D785+D792+D801+D809+#REF!","v":{"$error":"#REF!"}}]
[]
[null,{"$f":"B867","v":"Lyhytaikainen vieras pääoma"}]
[null,"Lyhytaikainen korollinen vieras pääoma"]
[null,"Joukkovelkakirjalainat "]
["250000","Joukkovelkakirjalainat",{"$f":"#REF!","v":{"$error":"#REF!"}}]
["250989","Joukkovelkakirjalainat",{"$f":"SUM(C817:C817)","v":{"$error":"#REF!"}},{"$f":"SUM(D817:D817)","v":0}]
[]
[null,"Lainat rahoitus- ja vakuutuslaitoksilta  "]
["251000","Lainat rahoitus- ja vakuutuslaitoksilta",{"$f":"#REF!","v":{"$error":"#REF!"}}]
["251489","Lainat rahoitus- ja vakuutuslaitoksilta",{"$f":"SUM(C821)","v":{"$error":"#REF!"}},{"$f":"SUM(D821)","v":0}]
[]
[null,"Lainat julkisyhteisöiltä  "]
["252000","Lainat julkisyhteisöiltä",{"$f":"#REF!","v":{"$error":"#REF!"}}]
["252108","Lainat julkisyhteisöiltä, sisäiset",{"$f":"#REF!","v":{"$error":"#REF!"}}]
["252989","Lainat julkisyhteisöiltä",{"$f":"SUM(C825:C826)","v":{"$error":"#REF!"}},{"$f":"SUM(D825:D826)","v":0}]
[]
[null,"Lainat muilta luotonantajilta  "]
["253000","Lainat muilta luotonantajilta",{"$f":"#REF!","v":{"$error":"#REF!"}}]
["253008","Lainat muilta luotonantajilta, sisäiset",{"$f":"#REF!","v":{"$error":"#REF!"}}]
[253108,"Konsernitilivelat",{"$f":"#REF!","v":{"$error":"#REF!"}}]
["253989","Lainat muilta luotonantajilta",{"$f":"SUM(C830:D832)","v":{"$error":"#REF!"}},{"$f":"SUM(D830:D831)","v":0}]
["253999","Lyhytaikainen korollinen vieras pääoma",{"$f":"SUM(C818+C822+C827+C833)","v":{"$error":"#REF!"}},{"$f":"SUM(D818+D822+#REF!+#REF!+D827+D833)","v":{"$error":"#REF!"}}]
[]
[null,"Lyhytaikainen koroton vieras pääoma"]
[null,"Saadut ennakot "]
["254008","Saadut ennakot tytäryhteisöiltä",{"$f":"#REF!","v":{"$error":"#REF!"}}]
["254108","Saadut ennakot jäsenkuntayhtymiltä",{"$f":"#REF!","v":{"$error":"#REF!"}}]
["254200","Saadut ennakot osakkuus- ja muilta omistusyhteysyhteisöiltä",{"$f":"#REF!","v":{"$error":"#REF!"}}]
["254400","Saadut ennakot muilta",{"$f":"#REF!","v":{"$error":"#REF!"}}]
["254489","Saadut ennakot",{"$f":"SUM(C838:C841)","v":{"$error":"#REF!"}},{"$f":"SUM(D838:D841)","v":0}]
[]
[null,"Ostovelat "]
["254508","Ostovelat konserniyhteisoilta",{"$f":"#REF!","v":{"$error":"#REF!"}}]
["254608","Ostovelat jäsenkuntayhtymille",{"$f":"#REF!","v":{"$error":"#REF!"}}]
["254700","Ostovelat osakkuus- ja muille omistusyhteysyhteisöille",{"$f":"#REF!","v":{"$error":"#REF!"}}]
["254900","Ostovelat muille",{"$f":"#REF!","v":{"$error":"#REF!"}}]
["254989","Ostovelat",{"$f":"SUM(C845:C848)","v":{"$error":"#REF!"}},{"$f":"SUM(D845:D848)","v":0}]
[]
[null,"Muut velat "]
["255008","Muut velat konserniyhteisöille",{"$f":"#REF!","v":{"$error":"#REF!"}}]
["255108","Muut velat jäsenkuntayhtymille",{"$f":"#REF!","v":{"$error":"#REF!"}}]
["255200","Muut velat osakkuus- ja muille omistusyhteysyhteisöille",{"$f":"#REF!","v":{"$error":"#REF!"}}]
["255500","Muut velat muille",{"$f":"#REF!","v":{"$error":"#REF!"}}]
["256989","Muut velat",{"$f":"SUM(C852:C855)","v":{"$error":"#REF!"}},{"$f":"SUM(D852:D855)","v":0}]
[]
[null,"Siirtovelat "]
["258408","Muut siirtovelat konserniyhteisoilta",{"$f":"#REF!","v":{"$error":"#REF!"}}]
["258508","Muut siirtovelat jäsenkuntayhtymille",{"$f":"#REF!","v":{"$error":"#REF!"}}]
["258600","Muut siirtovelat osakkuus- ja muille omistusyhteysyhteisöille",{"$f":"#REF!","v":{"$error":"#REF!"}}]
["258800","Muut siirtovelat muille",{"$f":"#REF!","v":{"$error":"#REF!"}}]
["258989","Muut siirtovelat",{"$f":"SUM(C859:C862)","v":{"$error":"#REF!"}},{"$f":"SUM(D859:D862)","v":0}]
["259989","Siirtovelat",{"$f":"C863","v":{"$error":"#REF!"}},{"$f":"#REF!+D863","v":{"$error":"#REF!"}}]
["259999","Lyhytaikainen koroton vieras pääoma",{"$f":"SUM(C842+C849+C856+C864)","v":{"$error":"#REF!"}},{"$f":"SUM(D842+D849+#REF!+D856+D864)","v":{"$error":"#REF!"}}]
[]
["299969","Lyhytaikainen vieras pääoma",{"$f":"C818+C822+C827+C833+C842+C849+C856+C864","v":{"$error":"#REF!"}},{"$f":"D818+D822+#REF!+#REF!+D827+D833+D842+D849+D856+D864","v":{"$error":"#REF!"}}]
[]
["299989","VIERAS PÄÄOMA",{"$f":"C812+C867","v":{"$error":"#REF!"}},{"$f":"D812+D867","v":{"$error":"#REF!"}}]
[]
[]
["299999","VASTATTAVAA",{"$f":"C869+C714+C718+C754+C723+C735+C750","v":{"$error":"#REF!"}},{"$f":"D869+D714+D718+D754+D723+D735+D750","v":{"$error":"#REF!"}}]
[]
["BDIFF","Tase-ero",{"$f":"C872-C642","v":{"$error":"#REF!"}},{"$f":"D872-D642","v":{"$error":"#REF!"}}]

{"sheet":"Ympäristötuotot","index":2,"n_rows":34,"n_cols":15,"rows_kept":34,"cut":false,"hidden":false,"merged":[[3,5,3,6],[6,10,6,14]]}
[null,null,null,null,null,"Liite 2",null,null,null,null,"Ympäristötoimenpiteiden talousvaikutukset lomakepohja"]
[null,null,null,null,null,"Konsernihallinto",null,null,null,null,"Tilinpäätös 2021"]
[null,null,null,null,null,"Talousyksikkö"]
[null,null,null,null,null,"2021-12-01",null,null,null,null,"Dnro TRE:6908/02.02.02/2021"]
[]
[null,null,null,null,null,null,null,null,null,null,"SAP-YRITYS/TOIMINTAYKSIKKÖ:"]
[]
[]
[null,"Ympäristökatsauksen laadintaa varten tarvittavat tiedot"]
[]
[null,"Ympäristötuotot"]
[]
[null,"Ympäristötuloja ovat esimerkiksi erilaiset ympäristönsuojeluntoiminnasta saadut myyntitulot, maksutulot,"]
[null,"ympäristönsuojelutoimenpiteisiin saatavat toiminta-avustukset tai hankkeiden saamat avustukset."]
[null,"Myyntituloja syntyy ympäristönsuojelutoiminnan myyntituloina, maksutuloja esim. ympäristölupamaksuista sekä "]
[null,"jätemaksuista ja toiminta-avustuksia esim. pilaantuneiden maiden kunnostukseen tai öljyntorjuntaan saaduista avustuksista."]
[]
[null,null,null,null,null,null,"Toiminto-\nalue",null,"Kirjaukset konsernin tytäryhteisöiltä",null,"Kirjaukset konsernin ulkopuolisilta tahoilta",null,"Kirjaukset yhteensä",null,"Mistä eristä ilmoitetut summat pääasiassa koostuvat?"]
[null,null,null,null,null,null,null,null,"€",null,"€",null,"€"]
[]
[null,"Ulkoilmansuojelu",null,null,null,null,411,null,null,null,null,null,{"$f":"I21+K21","v":0}]
[null,"Ilmastonmuutoksen hillintä",null,null,null,null,412,null,null,null,null,null,{"$f":"I22+K22","v":0}]
[null,"Ilmastonmuutokseen sopeutuminen",null,null,null,null,413,null,null,null,null,null,0]
[null,"Kestävä liikkuminen",null,null,null,null,414,null,null,null,null,null,0]
[null,"Vesiensuojelu ja jätevesien käsittely",null,null,null,null,420,null,null,null,null,null,0]
[null,"Jätehuolto ja roskaantumisen torjunta",null,null,null,null,430,null,null,null,null,null,0]
[null,"Maaperän ja pohjaveden suojelu",null,null,null,null,440,null,null,null,null,null,0]
[null,"Melun ja tärinän torjunta",null,null,null,null,450,null,null,null,null,null,0]
[null,"Luonnon- ja maisemansuojelu",null,null,null,null,460,null,null,null,null,null,0]
[null,"Ympäristönsuojeluun liittyvät viranomaistehtävät",null,null,null,null,470,null,null,null,null,null,0]
[null,"Ympäristöjohtaminen ja -kehittäminen",null,null,null,null,481,null,null,null,null,null,0]
[null,"Ympäristökoulutus, -kasvatus ja -neuvonta",null,null,null,null,482,null,null,null,null,null,0]
[]
[null,"Yhteensä",null,null,null,null,null,null,{"$f":"SUM(I21:I32)","v":0},null,{"$f":"SUM(K21:K32)","v":0},null,{"$f":"SUM(M21:M32)","v":0}]

{"sheet":"Ympäristökulut","index":3,"n_rows":53,"n_cols":15,"rows_kept":53,"cut":false,"hidden":false,"merged":[[3,5,3,6],[6,10,6,14],[36,14,37,14],[36,10,37,10],[36,8,37,8],[36,6,37,6],[36,12,37,12]]}
[null,null,null,null,null,"Liite 2",null,null,null,null,"Ympäristötoimenpiteiden talousvaikutukset lomakepohja"]
[null,null,null,null,null,"Konsernihallinto",null,null,null,null,"Tilinpäätös 2021"]
[null,null,null,null,null,"Talousyksikkö"]
[null,null,null,null,null,"2021-12-01",null,null,null,null,"Dnro TRE:6908/02.02.02/2021"]
[]
[null,null,null,null,null,null,null,null,null,null,"SAP-YRITYS/TOIMINTAYKSIKKÖ:"]
[]
[]
[null,"Ympäristökatsauksen laadintaa varten tarvittavat tiedot"]
[]
[null,"Ympäristökulut"]
[]
[null,"Ympäristömeno määritellään ympäristönsuojelutoimenpiteistä aiheutuneeksi menoksi. "]
[null,"Ympäristömeno aiheutuu toiminnasta, jonka tarkoituksena on tuottaa ympäristöhyötyjä tai ennaltaehkäistä, "]
[null,"vähentää tai korjata ympäristöhaittoja, parantaa luonnonsuojelun tasoa ja edistää luonnonvarojen kestävää käyttöä."]
[null,"HUOM! Välillisinä ympäristökuluina kirjataan ja ilmoitetaan ainoastaan välillisten ympäristöinvestointien poistot ja leasing-vuokrat v. 2017 alkaen."]
[]
[null,"VÄLITTÖMÄT YMPÄRISTÖKULUT",null,null,null,null,"Toiminto-\nalue",null,"Kirjaukset konsernin tytäryhteisöiltä",null,"Kirjaukset konsernin ulkopuolisilta tahoilta",null,"Kirjaukset yhteensä",null,"Mistä eristä ilmoitetut summat pääasiassa koostuvat? "]
[null,null,null,null,null,null,null,null,"€",null,"€"]
[]
[null,"Ulkoilmansuojelu",null,null,null,null,411,null,null,null,null,null,{"$f":"I21+K21","v":0}]
[null,"Ilmastonmuutoksen hillintä",null,null,null,null,412,null,null,null,null,null,{"$f":"I22+K22","v":0}]
[null,"Ilmastonmuutokseen sopeutuminen",null,null,null,null,413,null,null,null,null,null,0]
[null,"Kestävä liikkuminen",null,null,null,null,414,null,null,null,null,null,0]
[null,"Vesiensuojelu ja jätevesien käsittely",null,null,null,null,420,null,null,null,null,null,0]
[null,"Jätehuolto ja roskaantumisen torjunta",null,null,null,null,430,null,null,null,null,null,{"$f":"I26+K26","v":0}]
[null,"Maaperän ja pohjaveden suojelu",null,null,null,null,440,null,null,null,null,null,0]
[null,"Melun ja tärinän torjunta",null,null,null,null,450,null,null,null,null,null,0]
[null,"Luonnon- ja maisemansuojelu",null,null,null,null,460,null,null,null,null,null,0]
[null,"Ympäristönsuojeluun liittyvät viranomaistehtävät",null,null,null,null,470,null,null,null,null,null,0]
[null,"Ympäristöjohtaminen ja -kehittäminen",null,null,null,null,481,null,null,null,null,null,0]
[null,"Ympäristökoulutus, -kasvatus ja -neuvonta",null,null,null,null,482,null,null,null,null,null,0]
[" ","Ympäristöperusteiset verot ja veroluonteiset maksut",null,null,null,null,490,null,null,null,null,null,0]
[]
[null,"Yhteensä",null,null,null,null,null,null,{"$f":"SUM(I21:I33)","v":0},null,{"$f":"SUM(K21:K33)","v":0},null,{"$f":"SUM(M21:M33)","v":0}]
[]
[null,"VÄLILLISET YMPÄRISTÖKULUT",null,null,null,null,"Toiminto-\nalue",null,"Kirjaukset konsernin tytäryhteisöiltä",null,"Kirjaukset konsernin ulkopuolisilta tahoilta",null,"Kirjaukset yhteensä",null,"Mistä eristä ilmoitetut summat pääasiassa koostuvat? "]
[null,"Huom. ainoastaan tilikauden aikana tehdyt"]
[null,"välillisten ympäristöinvestointien poistot ",null,null,null,null,null,null,"€",null,"€"]
[null,"sekä leasing-vuokrat."]
[]
[null,"Ulkoilmansuojelu",null,null,null,null,611,null,null,null,null,null,{"$f":"I42+K42","v":0}]
[null,"Ilmastonmuutoksen hillintä",null,null,null,null,612,null,null,null,null,null,{"$f":"I43+K43","v":0}]
[null,"Ilmastonmuutokseen sopeutuminen",null,null,null,null,613,null,null,null,null,null,0]
[null,"Kestävä liikkuminen",null,null,null,null,614,null,null,null,null,null,0]
[null,"Vesiensuojelu ja jätevesien käsittely",null,null,null,null,620,null,null,null,null,null,0]
[null,"Jätehuolto ja roskaantumisen torjunta",null,null,null,null,630,null,null,null,null,null,0]
[null,"Maaperän ja pohjaveden suojelu",null,null,null,null,640,null,null,null,null,null,{"$f":"I48+K48","v":0}]
[null,"Melun ja tärinän torjunta",null,null,null,null,650,null,null,null,null,null,0]
[null,"Luonnon- ja maisemansuojelu",null,null,null,null,660,null,null,null,null,null,0]
[null,"Muut",null,null,null,null,689,null,null,null,null,null,0]
[]
[null,"Yhteensä",null,null,null,null,null,null,{"$f":"SUM(I42:I51)","v":0},null,{"$f":"SUM(K42:K51)","v":0},null,{"$f":"SUM(M42:M51)","v":0}]

{"sheet":"Ympäristöinvestoinnit","index":4,"n_rows":91,"n_cols":15,"rows_kept":91,"cut":false,"hidden":false,"merged":[[58,6,58,10],[24,6,24,10],[24,12,24,14],[3,5,3,6],[6,10,6,14]]}
[null,null,null,null,null,"Liite 2",null,null,null,null,"Ympäristötoimenpiteiden talousvaikutukset lomakepohja"]
[null,null,null,null,null,"Konsernihallinto",null,null,null,null,"Tilinpäätös 2021"]
[null,null,null,null,null,"Talousyksikkö"]
[null,null,null,null,null,"2021-12-01",null,null,null,null,"Dnro TRE:6908/02.02.02/2021"]
[]
[null,null,null,null,null,null,null,null,null,null,"SAP-YRITYS/TOIMINTAYKSIKKÖ:"]
[]
[]
[null,"Ympäristökatsauksen laadintaa varten tarvittavat tiedot"]
[]
[null,"Ympäristöinvestoinnit"]
[]
[null,"Ympäristöinvestointi on meno, joka syntyy ympäristöhaittojen ennaltaehkäisemiseksi, vähentämiseksi tai korjaamiseksi, "]
[null,"tulevan ympäristön- ja ilmastonsuojelutason parantamiseksi ja luonnonvarojen kestävän käytön edistämiseksi hankitusta hyödykkeestä. "]
[null,"Lisäksi investoinnin eli hankitun hyödykkeen odotetaan tuottavan tuloa tai se on tarkoitettu käytettäväksi tuotannontekijänä"]
[null,"hyödyke- ja palvelutuotannossa jatkuvasti usean tilikauden ajan."]
[]
[null,"Välittömät ympäristöinvestoinnit ovat ensisijaisesti ympäristön- ja ilmastonsuojeluun tähtääviä investointeja."]
[null,"Välilliset investoinnit on tehty ensisijaisesti muuta tarkoitusta varten, mutta niistä syntyy myös ympäristöhyötyjä."]
[null,"Leasing-rahoitteiset investoinnit voivat olla joko välittömiä tai välillisiä ympäristöinvestointeja, jotka eivät käytettävästä"]
[null,"rahoitusmallista johtuen tule kaupungin omistukseen (tai omistusoikeus siirtyy vasta sopimuksen päätyttyä, ns."]
[null,"rahoitusleasing). Kustannuksena ilmoitetaan leasing-vuokra koko vuokra-ajalta, mahdollinen jäännösarvo sekä mahdolliset"]
[null,"muut hankkeeseen liittyvät olennaiset aktivointikelpoiset kulut."]
[]
[null,"ITSE RAHOITETUT YMPÄRISTÖINVESTOINNIT"]
[]
[null,"VÄLITTÖMÄT YMPÄRISTÖINVESTOINNIT",null,null,null,null,"Toiminto-\nalue",null,"Kirjaukset konsernin tytäryhteisöiltä",null,"Kirjaukset konsernin ulkopuolisilta tahoilta",null,"Kirjaukset yhteensä",null,"Mistä eristä ilmoitetut summat pääasiassa koostuvat?"]
[null,null,null,null,null,null,null,null,"€",null,"€"]
[]
[null,"Ulkoilmansuojelu",null,null,null,null,411,null,null,null,null,null,{"$f":"I30+K30","v":0}]
[null,"Ilmastonmuutoksen hillintä",null,null,null,null,412,null,null,null,null,null,{"$f":"I31+K31","v":0}]
[null,"Ilmastonmuutokseen sopeutuminen",null,null,null,null,413,null,null,null,null,null,0]
[null,"Kestävä liikkuminen",null,null,null,null,414,null,null,null,null,null,0]
[null,"Vesiensuojelu ja jätevesien käsittely",null,null,null,null,420,null,null,null,null,null,0]
[null,"Jätehuolto ja roskaantumisen torjunta",null,null,null,null,430,null,null,null,null,null,0]
[null,"Maaperän ja pohjaveden suojelu",null,null,null,null,440,null,null,null,null,null,0]
[null,"Melun ja tärinän torjunta",null,null,null,null,450,null,null,null,null,null,0]
[null,"Luonnon- ja maisemansuojelu",null,null,null,null,460,null,null,null,null,null,0]
[null,"Muut",null,null,null,null,489,null,null,null,null,null,0]
[]
[null,"Yhteensä",null,null,null,null,null,null,{"$f":"SUM(I30:I39)","v":0},null,{"$f":"SUM(K30:K39)","v":0},null,{"$f":"SUM(M30:M39)","v":0}]
[]
[null,"VÄLILLISET YMPÄRISTÖINVESTOINNIT",null,null,null,null,"Toiminto-\nalue",null,"Kirjaukset konsernin tytäryhteisöiltä",null,"Kirjaukset konsernin ulkopuolisilta tahoilta",null,"Kirjaukset yhteensä",null,"Mistä eristä ilmoitetut summat pääasiassa koostuvat?"]
[null,null,null,null,null,null,null,null,"€",null,"€"]
[]
[null,"Ulkoilmansuojelu",null,null,null,null,611,null,null,null,null,null,{"$f":"I46+K46","v":0}]
[null,"Ilmastonmuutoksen hillintä",null,null,null,null,612,null,null,null,null,null,{"$f":"I47+K47","v":0}]
[null,"Ilmastonmuutokseen sopeutuminen",null,null,null,null,613,null,null,null,null,null,0]
[null,"Kestävä liikkuminen",null,null,null,null,614,null,null,null,null,null,0]
[null,"Vesiensuojelu ja jätevesien käsittely",null,null,null,null,620,null,null,null,null,null,0]
[null,"Jätehuolto ja roskaantumisen torjunta",null,null,null,null,630,null,null,null,null,null,0]
[null,"Maaperän ja pohjaveden suojelu",null,null,null,null,640,null,null,null,null,null,0]
[null,"Melun ja tärinän torjunta",null,null,null,null,650,null,null,null,null,null,0]
[null,"Luonnon- ja maisemansuojelu",null,null,null,null,660,null,null,null,null,null,0]
[null,"Muut",null,null,null,null,689,null,null,null,null,null,0]
[]
[null,"Yhteensä",null,null,null,null,null,null,{"$f":"SUM(I46:I55)","v":0},null,{"$f":"SUM(K46:K55)","v":0},null,{"$f":"SUM(M46:M55)","v":0}]
[]
[null,"LEASING-RAHOITTEISET YMPÄRISTÖINVESTOINNIT"]
[]
[null,"VÄLITTÖMÄT YMPÄRISTÖINVESTOINNIT",null,null,null,null,"Toiminto-\nalue",null,"Kirjaukset konsernin tytäryhteisöiltä",null,"Kirjaukset konsernin ulkopuolisilta tahoilta",null,"Kirjaukset yhteensä",null,"Mistä eristä ilmoitetut summat pääasiassa koostuvat?"]
[null,null,null,null,null,null,null,null,"€",null,"€"]
[]
[null,"Ulkoilmansuojelu",null,null,null,null,411,null,null,null,null,null,{"$f":"I64+K64","v":0}]
[null,"Ilmastonmuutoksen hillintä",null,null,null,null,412,null,null,null,null,null,{"$f":"I65+K65","v":0}]
[null,"Ilmastonmuutokseen sopeutuminen",null,null,null,null,413,null,null,null,null,null,0]
[null,"Kestävä liikkuminen",null,null,null,null,414,null,null,null,null,null,0]
[null,"Vesiensuojelu ja jätevesien käsittely",null,null,null,null,420,null,null,null,null,null,0]
[null,"Jätehuolto ja roskaantumisen torjunta",null,null,null,null,430,null,null,null,null,null,0]
[null,"Maaperän ja pohjaveden suojelu",null,null,null,null,440,null,null,null,null,null,0]
[null,"Melun ja tärinän torjunta",null,null,null,null,450,null,null,null,null,null,0]
[null,"Luonnon- ja maisemansuojelu",null,null,null,null,460,null,null,null,null,null,0]
[null,"Muut",null,null,null,null,489,null,null,null,null,null,0]
[]
[null,"Yhteensä",null,null,null,null,null,null,{"$f":"SUM(I64:I73)","v":0},null,{"$f":"SUM(K64:K73)","v":0},null,{"$f":"SUM(M64:M73)","v":0}]
[]
[null,"VÄLILLISET YMPÄRISTÖINVESTOINNIT",null,null,null,null,"Toiminto-\nalue",null,"Kirjaukset konsernin tytäryhteisöiltä",null,"Kirjaukset konsernin ulkopuolisilta tahoilta",null,"Kirjaukset yhteensä",null,"Mistä eristä ilmoitetut summat pääasiassa koostuvat?"]
[null,null,null,null,null,null,null,null,"€",null,"€"]
[]
[null,"Ulkoilmansuojelu",null,null,null,null,611,null,null,null,null,null,{"$f":"I80+K80","v":0}]
[null,"Ilmastonmuutoksen hillintä",null,null,null,null,612,null,null,null,null,null,{"$f":"I81+K81","v":0}]
[null,"Ilmastonmuutokseen sopeutuminen",null,null,null,null,613,null,null,null,null,null,0]
[null,"Kestävä liikkuminen",null,null,null,null,614,null,null,null,null,null,0]
[null,"Vesiensuojelu ja jätevesien käsittely",null,null,null,null,620,null,null,null,null,null,0]
[null,"Jätehuolto ja roskaantumisen torjunta",null,null,null,null,630,null,null,null,null,null,0]
[null,"Maaperän ja pohjaveden suojelu",null,null,null,null,640,null,null,null,null,null,0]
[null,"Melun ja tärinän torjunta",null,null,null,null,650,null,null,null,null,null,0]
[null,"Luonnon- ja maisemansuojelu",null,null,null,null,660,null,null,null,null,null,0]
[null,"Muut",null,null,null,null,689,null,null,null,null,null,0]
[]
[null,"Yhteensä",null,null,null,null,null,null,{"$f":"SUM(I80:I89)","v":0},null,{"$f":"SUM(K80:K89)","v":0},null,{"$f":"SUM(M80:M89)","v":0}]

{"sheet":"Henkilöstökustannukset","index":5,"n_rows":42,"n_cols":6,"rows_kept":42,"cut":false,"hidden":false,"merged":[[3,2,3,3]]}
[null,null,"Liite 2",null,"Ympäristötoimenpiteiden talousvaikutukset lomakepohja"]
[null,null,"Konsernihallinto",null,"Tilinpäätös 2021"]
[null,null,"Talousyksikkö"]
[null,null,"2021-12-01",null,"Dnro TRE:6908/02.02.02/2021"]
[]
[null,null,null,null,"SAP-YRITYS/TOIMINTAYKSIKKÖ:"]
[]
[]
[null,"Ympäristökatsauksen laadintaa varten tarvittavat tiedot"]
[]
[null,"Henkilöstökustannukset"]
[]
[null,"Lomakkeella ilmoitetaan henkilöstökustannukset, niiltä osin kun työpanos kohdistuu ympäristön- tai ilmastonsuojeluun. "]
[null,"Jos kustannukset on eroteltavissa kirjaustunnisteilla, ne täytetään Taulukkoon 1. Muissa tapauksissa kustannukset ilmoitetaan Taulukkoon 2."]
[null,"Henkilöstökulut ilmoitetaan vain niiltä osin kuin ne eivät sisälly Ympäristökulut-välilehdellä ilmoitettuihin kuluihin."]
[]
[null,"Esim. seuraavien yksiköiden henkilöstömenot ilmoitetaan kokonaisuudessaan: ympäristönsuojelu (470), jätehuoltoviranomainen (470), ilmasto- ja ympäristöpolitiikan yksikkö (481) sekä"]
[null,"Kestävä Tampere 2030 -ohjelma ja siihen kuuluvat projektit (412). Lisäksi henkilöstömenot ilmoitetaan esimerkiksi joukkoliikenteen, kävelyn ja pyöräilyn edistämisen (414)"]
[null,"sekä luonnonmukaisten hulevesiratkaisuiden edistämisen (413) osalta. Yleiskaavoituksen osalta on arvioitu, että 25 % henkilöstömenoista kohdentuu ympäristön- ja ilmastonsuojeluun."]
[null,"Ne jyvitetään tasaisesti ilmastonmuutoksen hillinnän (412), ilmastonmuutokseen sopeutumisen (413), kestävän liikkumisen (414) sekä luonnon- ja maisemansuojelun (460) välille niin, "]
[null,"että kuhunkin luokkaan kohdennetaan 6,25 % henkilöstömenoista."]
[]
[null,"Taulukko 1"]
[null,"Taulukkoon tulee täyttää ympäristönsuojelun toimintoalue, kustannukset, kirjaustunnisteet ja kuvaus toiminnasta."]
[]
[null,"Toimintoalue","Kustannukset","Kirjaustunnisteet (esim. tulosyksikkö, PRR-osa, sisäinen tilaus)","Kuvaus toiminnasta (miksi kohdistetaan ympäristönsuojeluun)"]
[]
[]
[]
[]
[null,"(lisää tarvittaessa uusi rivi)"]
[]
[null,"Taulukko 2"]
[null,"Henkilöt, joiden työpanos kohdistetaan ympäristön- tai ilmastonsuojeluun kokonaan tai osittain (esim. ympäristöasiantuntija, ympäristöinsinööri jne.)"]
[null,"Taulukkoon tulee täyttää ympäristönsuojelun toimintoalue, henkilön nimi ja toiminike, ko. henkilöstä aiheutuneet henkilöstökustannukset jotka kohdistuvat ympäristön- tai ilmastonsuojeluun, kustannusten laskentaperusteet ja kuvaus toiminnasta."]
[null,"Laskentaperusteena voi käyttää esim. arviota siitä kuinka paljon henkilön työajasta kohdistuu vuodessa keskimäärin ympäristön- tai ilmastonsuojeluun."]
[]
[null,"Toimintoalue","Henkilön nimi ja toiminimike","Kustannukset ympäristönsuojeluun","Kustannusten laskentaperusteet","Kuvaus toiminnasta (miksi kohdistetaan ympäristönsuojeluun)"]
[]
[]
[]
[null,"(lisää tarvittaessa uusi rivi)"]

{"sheet":"Tiedot toimintakertomukseen","index":6,"n_rows":18,"n_cols":10,"rows_kept":18,"cut":false,"hidden":false,"merged":[[18,1,19,14],[3,5,3,6],[6,9,6,14]]}
[null,null,null,null,null,"Liite 2",null,null,null,"Ympäristötoimenpiteiden talousvaikutukset lomakepohja"]
[null,null,null,null,null,"Konsernihallinto",null,null,null,"Tilinpäätös 2021"]
[null,null,null,null,null,"Talousyksikkö"]
[null,null,null,null,null,"2021-12-01",null,null,null,"Dnro TRE:6908/02.02.02/2021"]
[]
[null,null,null,null,null,null,null,null,null,"SAP-YRITYS/TOIMINTAYKSIKKÖ:"]
[]
[]
[null,"Toimintakertomuksen laadintaa varten tarvittavat tiedot"]
[]
[null,"Kaupungin talouden kannalta olennaiset vuoden 2021 aikana toteutetut ympäristö- ja ilmastotoimenpiteet"]
[null,"sekä arvio niiden taloudellisista vaikutuksista"]
[]
[null,"Kuvaus niistä ympäristötekijöistä, jotka vaikuttavat olennaisesti kaupungin taloudelliseen tulokseen, asemaan tai "]
[null,"toiminnan kehitykseen. Olennaisia ympäristötoimenpiteitä ovat esim. jäteveden puhdistukseen kohdistuvat muutostyöt,"]
[null,"suuret investointipäätökset tai toiminnan kehitystä ohjaavat merkittävät päätökset sekä huomattavat ympäristövahingot. "]
[]
[null,"Lisää teksti tähän:"]